Workbook

Sheet class rolls
A1: How often did the class roll a 4 in 12 trials?
C3: p = | D3: =1/6 -> 0.1666666667
C4: n = | D4: 12 | F4: class size= | G4: 32
A6: # 4's | B6: est.prob | D6: predicted | E6: prob (binomial)
A7: 0 | B7: =A7/12 -> 0 | D7: =E7*$G$4 -> 3.589012953 | E7: =FACT($D$4)/FACT($D$4-A7)/FACT(A7)*$D$3^A7*(1-$D$3)^($D$4-A7) -> 0.1121566548
A8: 1 | B8: =A8/12 -> 0.08333333333 | D8: =E8*$G$4 -> 8.613631087 | E8: 0.2691759715
A9: 2 | B9: 0.1666666667 | D9: 9.474994196 | E9: 0.2960935686
A10: 3 | B10: 0.25 | D10: 6.316662797 | E10: 0.1973957124
A11: 4 | B11: 0.3333333333 | D11: 2.842498259 | E11: 0.08882807059
A12: 5 | B12: 0.4166666667 | D12: 0.9095994428 | E12: 0.02842498259
A13: 6 | B13: 0.5 | D13: 0.21223987 | E13: 0.006632495937
A14: 7 | B14: 0.5833333333 | D14: 0.03638397771 | E14: 0.001136999304
A15: 8 | B15: 0.6666666667 | D15: 0.004547997214 | E15: 0.0001421249129
A16: 9 | B16: 0.75 | D16: 0.000404266419 | E16: 1.263332559e-05
A17: 10 | B17: 0.8333333333 | D17: 2.425598514e-05 | E17: 7.579995357e-07
A18: 11 | B18: 0.9166666667 | D18: 8.820358234e-07 | E18: 2.756361948e-08
A19: 12 | B19: 1 | D19: 1.470059706e-08 | E19: 4.59393658e-10
C21: =SUM(C7:C19) -> 0 | D21: =SUM(D7:D19) -> 32

Sheet 12
S2: Have cursor in BLUE cell | T2: Have cursor in BLUE cell
S3: before hitting this button!
A4: roll | B4: U[0,1] | C4: outcome
A5: 1 | B5: =RAND() -> 0.7898654676 | C5: =INT(B5*6+1) -> 5 | P5: Results of experiments
A6: 2 | B6: =RAND() -> 0.3208639308 | C6: =INT(B6*6+1) -> 2 | P6: estimated probability of rolling a 4: | Y6: average | Z6: =AVERAGE(Z9:Z508) -> 0.1728333333
A7: 3 | B7: 0.07672330808 | C7: 1 | Y7: std. error | Z7: =STDEV(Z9:Z508) -> 0.1091620836
A8: 4 | B8: 0.6596929633 | C8: 4 | E8: outcome | F8: count | G8: rel freq. | Q8: count | R8: est. prob | S8: sq error | U8: true
A9: 5 | B9: 0.8061977372 | C9: 5 | E9: 1 | F9: =FREQUENCY(C5:C16,E9:E14) -> 2 | G9: =F9/$F$16 -> 0.1666666667 | P9: 1 | S9: =(R9-U9)^2 -> 0.02777777778 | U9: =1/6 -> 0.1666666667 | X9: 1 | Y9: 1 | Z9: 0.08333333333 | AK9: 1 | AL9: 0 | AM9: 2 | AN9: =AL9*6 -> 0 | AO9: 3 | AP9: =AN9+1 -> 1 | AQ9: 4 | AR9: =AP9 -> 1
A10: 6 | B10: 0.7703673207 | C10: 5 | E10: 2 | F10: 1 | G10: 0.08333333333 | P10: 2 | S10: =(R10-U10)^2 -> 0.02777777778 | U10: =1/6 -> 0.1666666667 | X10: 2 | Y10: 2 | Z10: 0.1666666667 | AK10: 1 | AL10: =AL9+1/6 -> 0.1666666667 | AM10: 2 | AN10: 1 | AO10: 3 | AP10: 2 | AQ10: 4 | AR10: =AP10 -> 2
A11: 7 | B11: 0.57536494 | C11: 4 | E11: 3 | F11: 0 | G11: 0 | P11: 3 | S11: 0.02777777778 | U11: 0.1666666667 | X11: 3 | Y11: 1 | Z11: 0.08333333333 | AK11: 1 | AL11: =AL10+1/6 -> 0.3333333333 | AM11: 2 | AN11: 2 | AO11: 3 | AP11: 3 | AQ11: 4 | AR11: 3
A12: 8 | B12: 0.04555896021 | C12: 1 | E12: 4 | F12: 2 | G12: 0.1666666667 | P12: 4 | S12: 0.02777777778 | U12: 0.1666666667 | X12: 4 | Y12: 1 | Z12: 0.08333333333 | AK12: 1 | AL12: 0.5 | AM12: 2 | AN12: 3 | AO12: 3 | AP12: 4 | AQ12: 4 | AR12: 4
A13: 9 | B13: 0.8783128786 | C13: 6 | E13: 5 | F13: 3 | G13: 0.25 | P13: 5 | S13: 0.02777777778 | U13: 0.1666666667 | X13: 5 | Y13: 3 | Z13: 0.25 | AK13: 1 | AL13: 0.6666666667 | AM13: 2 | AN13: 4 | AO13: 3 | AP13: 5 | AQ13: 4 | AR13: 5
A14: 10 | B14: 0.9460696894 | C14: 6 | E14: 6 | F14: 4 | G14: 0.3333333333 | P14: 6 | S14: 0.02777777778 | U14: 0.1666666667 | X14: 6 | Y14: 5 | Z14: 0.4166666667 | AK14: 1 | AL14: 0.8333333333 | AM14: 2 | AN14: 5 | AO14: 3 | AP14: 6 | AQ14: 4 | AR14: 6
A15: 11 | B15: 0.9728036882 | C15: 6 | P15: 7 | S15: 0.02777777778 | U15: 0.1666666667 | X15: 7 | Y15: 2 | Z15: 0.1666666667 | AK15: 1 | AL15: 1 | AM15: 2 | AN15: 6 | AO15: 3 | AP15: 7
A16: 12 | B16: 0.9236539654 | C16: 6 | F16: =SUM(F9:F14) -> 12 | G16: =SUM(G9:G14) -> 1 | P16: 8 | S16: 0.02777777778 | U16: 0.1666666667 | X16: 8 | Y16: 3 | Z16: 0.25
P17: 9 | S17: 0.02777777778 | U17: 0.1666666667 | X17: 9 | Y17: 4 | Z17: 0.3333333333
P18: 10 | S18: 0.02777777778 | U18: 0.1666666667 | X18: 10 | Y18: 2 | Z18: 0.1666666667
E19: Expected count is | P19: 11 | S19: 0.02777777778 | U19: 0.1666666667 | X19: 11 | Y19: 2 | Z19: 0.1666666667
E20: 12 * 1/6 = | F20: 2 | P20: 12 | S20: 0.02777777778 | U20: 0.1666666667 | X20: 12 | Y20: 1 | Z20: 0.08333333333
P21: 13 | S21: 0.02777777778 | U21: 0.1666666667 | X21: 13 | Y21: 3 | Z21: 0.25
E22: distribution mean of X | P22: 14 | S22: 0.02777777778 | U22: 0.1666666667 | X22: 14 | Y22: 2 | Z22: 0.1666666667
E23: 1/6*(1+2+3+4+5+6)= | F23: 3.5 | P23: 15 | S23: 0.02777777778 | U23: 0.1666666667 | X23: 15 | Y23: 1 | Z23: 0.08333333333
P24: 16 | S24: 0.02777777778 | U24: 0.1666666667 | X24: 16 | Y24: 3 | Z24: 0.25
E25: Observed mean of X | P25: 17 | S25: 0.02777777778 | U25: 0.1666666667 | X25: 17 | Y25: 3 | Z25: 0.25
F26: =E9*G9+E10*G10+E11*G11+E12*G12+E13*G13+E14*G14 -> 4.25 | P26: 18 | S26: 0.02777777778 | U26: 0.1666666667 | X26: 18 | Y26: 3 | Z26: 0.25
P27: 19 | S27: 0.02777777778 | U27: 0.1666666667 | X27: 19 | Y27: 4 | Z27: 0.3333333333
P28: 20 | S28: 0.02777777778 | U28: 0.1666666667 | X28: 20 | Y28: 3 | Z28: 0.25
X29: 21 | Y29: 1 | Z29: 0.08333333333
Q30: average | R30: =AVERAGE(R9:R28) ->  | S30: true = | T30: =1/6 -> 0.1666666667 | X30: 22 | Y30: 3 | Z30: 0.25
Q31: std. error | R31: =SQRT(SUM(S9:S28)/($P$28-1)) -> 0.170996392 | X31: 23 | Y31: 3 | Z31: 0.25
X32: 24 | Y32: 2 | Z32: 0.1666666667
X33: 25 | Y33: 4 | Z33: 0.3333333333
X34: 26 | Y34: 3 | Z34: 0.25
X35: 27 | Y35: 2 | Z35: 0.1666666667
X36: 28 | Y36: 4 | Z36: 0.3333333333
X37: 29 | Y37: 3 | Z37: 0.25
X38: 30 | Y38: 2 | Z38: 0.1666666667
X39: 31 | Y39: 2 | Z39: 0.1666666667
X40: 32 | Y40: 1 | Z40: 0.08333333333
X41: 33 | Y41: 3 | Z41: 0.25
X42: 34 | Y42: 1 | Z42: 0.08333333333
X43: 35 | Y43: 1 | Z43: 0.08333333333
X44: 36 | Y44: 0 | Z44: 0
X45: 37 | Y45: 3 | Z45: 0.25
X46: 38 | Y46: 4 | Z46: 0.3333333333
X47: 39 | Y47: 2 | Z47: 0.1666666667
X48: 40 | Y48: 2 | Z48: 0.1666666667
X49: 41 | Y49: 1 | Z49: 0.08333333333
X50: 42 | Y50: 2 | Z50: 0.1666666667
X51: 43 | Y51: 3 | Z51: 0.25
X52: 44 | Y52: 2 | Z52: 0.1666666667
X53: 45 | Y53: 2 | Z53: 0.1666666667
X54: 46 | Y54: 5 | Z54: 0.4166666667
X55: 47 | Y55: 2 | Z55: 0.1666666667
X56: 48 | Y56: 1 | Z56: 0.08333333333
X57: 49 | Y57: 2 | Z57: 0.1666666667
X58: 50 | Y58: 0 | Z58: 0
X59: 51 | Y59: 3 | Z59: 0.25
X60: 52 | Y60: 1 | Z60: 0.08333333333
X61: 53 | Y61: 2 | Z61: 0.1666666667
X62: 54 | Y62: 5 | Z62: 0.4166666667
X63: 55 | Y63: 4 | Z63: 0.3333333333
X64: 56 | Y64: 3 | Z64: 0.25
X65: 57 | Y65: 1 | Z65: 0.08333333333
X66: 58 | Y66: 2 | Z66: 0.1666666667
X67: 59 | Y67: 3 | Z67: 0.25
X68: 60 | Y68: 2 | Z68: 0.1666666667
X69: 61 | Y69: 3 | Z69: 0.25
X70: 62 | Y70: 1 | Z70: 0.08333333333
X71: 63 | Y71: 2 | Z71: 0.1666666667
X72: 64 | Y72: 1 | Z72: 0.08333333333
X73: 65 | Y73: 2 | Z73: 0.1666666667
X74: 66 | Y74: 2 | Z74: 0.1666666667
X75: 67 | Y75: 4 | Z75: 0.3333333333
X76: 68 | Y76: 2 | Z76: 0.1666666667
X77: 69 | Y77: 1 | Z77: 0.08333333333
X78: 70 | Y78: 1 | Z78: 0.08333333333
X79: 71 | Y79: 0 | Z79: 0
X80: 72 | Y80: 0 | Z80: 0
X81: 73 | Y81: 2 | Z81: 0.1666666667
X82: 74 | Y82: 0 | Z82: 0
X83: 75 | Y83: 0 | Z83: 0
X84: 76 | Y84: 4 | Z84: 0.3333333333
X85: 77 | Y85: 5 | Z85: 0.4166666667
X86: 78 | Y86: 5 | Z86: 0.4166666667
X87: 79 | Y87: 2 | Z87: 0.1666666667
X88: 80 | Y88: 4 | Z88: 0.3333333333
X89: 81 | Y89: 2 | Z89: 0.1666666667
X90: 82 | Y90: 2 | Z90: 0.1666666667
X91: 83 | Y91: 1 | Z91: 0.08333333333
X92: 84 | Y92: 2 | Z92: 0.1666666667
X93: 85 | Y93: 1 | Z93: 0.08333333333
X94: 86 | Y94: 3 | Z94: 0.25
X95: 87 | Y95: 2 | Z95: 0.1666666667
X96: 88 | Y96: 4 | Z96: 0.3333333333
X97: 89 | Y97: 1 | Z97: 0.08333333333
X98: 90 | Y98: 0 | Z98: 0
X99: 91 | Y99: 1 | Z99: 0.08333333333
X100: 92 | Y100: 1 | Z100: 0.08333333333
X101: 93 | Y101: 4 | Z101: 0.3333333333
X102: 94 | Y102: 1 | Z102: 0.08333333333
X103: 95 | Y103: 3 | Z103: 0.25
X104: 96 | Y104: 2 | Z104: 0.1666666667
X105: 97 | Y105: 2 | Z105: 0.1666666667
X106: 98 | Y106: 1 | Z106: 0.08333333333
X107: 99 | Y107: 2 | Z107: 0.1666666667
X108: 100 | Y108: 2 | Z108: 0.1666666667
X109: 101 | Y109: 1 | Z109: 0.08333333333
X110: 102 | Y110: 5 | Z110: 0.4166666667
X111: 103 | Y111: 4 | Z111: 0.3333333333
X112: 104 | Y112: 2 | Z112: 0.1666666667
X113: 105 | Y113: 6 | Z113: 0.5
X114: 106 | Y114: 2 | Z114: 0.1666666667
X115: 107 | Y115: 2 | Z115: 0.1666666667
X116: 108 | Y116: 1 | Z116: 0.08333333333
X117: 109 | Y117: 4 | Z117: 0.3333333333
X118: 110 | Y118: 2 | Z118: 0.1666666667
X119: 111 | Y119: 2 | Z119: 0.1666666667
X120: 112 | Y120: 1 | Z120: 0.08333333333
X121: 113 | Y121: 1 | Z121: 0.08333333333
X122: 114 | Y122: 2 | Z122: 0.1666666667
X123: 115 | Y123: 1 | Z123: 0.08333333333
X124: 116 | Y124: 0 | Z124: 0
X125: 117 | Y125: 1 | Z125: 0.08333333333
X126: 118 | Y126: 2 | Z126: 0.1666666667
X127: 119 | Y127: 1 | Z127: 0.08333333333
X128: 120 | Y128: 2 | Z128: 0.1666666667
X129: 121 | Y129: 2 | Z129: 0.1666666667
X130: 122 | Y130: 4 | Z130: 0.3333333333
X131: 123 | Y131: 3 | Z131: 0.25
X132: 124 | Y132: 1 | Z132: 0.08333333333
X133: 125 | Y133: 2 | Z133: 0.1666666667
X134: 126 | Y134: 1 | Z134: 0.08333333333
X135: 127 | Y135: 5 | Z135: 0.4166666667
X136: 128 | Y136: 0 | Z136: 0
X137: 129 | Y137: 3 | Z137: 0.25
X138: 130 | Y138: 1 | Z138: 0.08333333333
X139: 131 | Y139: 1 | Z139: 0.08333333333
X140: 132 | Y140: 2 | Z140: 0.1666666667
X141: 133 | Y141: 1 | Z141: 0.08333333333
X142: 134 | Y142: 5 | Z142: 0.4166666667
X143: 135 | Y143: 1 | Z143: 0.08333333333
X144: 136 | Y144: 1 | Z144: 0.08333333333
X145: 137 | Y145: 2 | Z145: 0.1666666667
X146: 138 | Y146: 2 | Z146: 0.1666666667
X147: 139 | Y147: 2 | Z147: 0.1666666667
X148: 140 | Y148: 4 | Z148: 0.3333333333
X149: 141 | Y149: 1 | Z149: 0.08333333333
X150: 142 | Y150: 1 | Z150: 0.08333333333
X151: 143 | Y151: 1 | Z151: 0.08333333333
X152: 144 | Y152: 1 | Z152: 0.08333333333
X153: 145 | Y153: 4 | Z153: 0.3333333333
X154: 146 | Y154: 3 | Z154: 0.25
X155: 147 | Y155: 2 | Z155: 0.1666666667
X156: 148 | Y156: 2 | Z156: 0.1666666667
X157: 149 | Y157: 0 | Z157: 0
X158: 150 | Y158: 3 | Z158: 0.25
X159: 151 | Y159: 3 | Z159: 0.25
X160: 152 | Y160: 3 | Z160: 0.25
X161: 153 | Y161: 5 | Z161: 0.4166666667
X162: 154 | Y162: 2 | Z162: 0.1666666667
X163: 155 | Y163: 5 | Z163: 0.4166666667
X164: 156 | Y164: 2 | Z164: 0.1666666667
X165: 157 | Y165: 3 | Z165: 0.25
X166: 158 | Y166: 4 | Z166: 0.3333333333
X167: 159 | Y167: 2 | Z167: 0.1666666667
X168: 160 | Y168: 4 | Z168: 0.3333333333
X169: 161 | Y169: 5 | Z169: 0.4166666667
X170: 162 | Y170: 1 | Z170: 0.08333333333
X171: 163 | Y171: 1 | Z171: 0.08333333333
X172: 164 | Y172: 3 | Z172: 0.25
X173: 165 | Y173: 2 | Z173: 0.1666666667
X174: 166 | Y174: 2 | Z174: 0.1666666667
X175: 167 | Y175: 2 | Z175: 0.1666666667
X176: 168 | Y176: 2 | Z176: 0.1666666667
X177: 169 | Y177: 1 | Z177: 0.08333333333
X178: 170 | Y178: 4 | Z178: 0.3333333333
X179: 171 | Y179: 3 | Z179: 0.25
X180: 172 | Y180: 3 | Z180: 0.25
X181: 173 | Y181: 1 | Z181: 0.08333333333
X182: 174 | Y182: 0 | Z182: 0
X183: 175 | Y183: 3 | Z183: 0.25
X184: 176 | Y184: 3 | Z184: 0.25
X185: 177 | Y185: 2 | Z185: 0.1666666667
X186: 178 | Y186: 0 | Z186: 0
X187: 179 | Y187: 3 | Z187: 0.25
X188: 180 | Y188: 3 | Z188: 0.25
X189: 181 | Y189: 1 | Z189: 0.08333333333
X190: 182 | Y190: 0 | Z190: 0
X191: 183 | Y191: 0 | Z191: 0
X192: 184 | Y192: 5 | Z192: 0.4166666667
X193: 185 | Y193: 2 | Z193: 0.1666666667
X194: 186 | Y194: 3 | Z194: 0.25
X195: 187 | Y195: 4 | Z195: 0.3333333333
X196: 188 | Y196: 3 | Z196: 0.25
X197: 189 | Y197: 5 | Z197: 0.4166666667
X198: 190 | Y198: 2 | Z198: 0.1666666667
X199: 191 | Y199: 2 | Z199: 0.1666666667
X200: 192 | Y200: 1 | Z200: 0.08333333333
X201: 193 | Y201: 1 | Z201: 0.08333333333
... 307 more rows

Sheet 100
S2: Have cursor in BLUE cell
S3: before hitting this button!
A4: roll | B4: U[0,1] | C4: outcome
A5: 1 | B5: =RAND() -> 0.4470053153 | C5: =INT(B5*6+1) -> 3 | P5: Results of experiments
A6: 2 | B6: =RAND() -> 0.09539940648 | C6: =INT(B6*6+1) -> 1 | P6: estimated probability of rolling a 4: | Y6: average | Z6: =AVERAGE(Z9:Z508) -> 0.16618
A7: 3 | B7: 0.531459806 | C7: 4 | Y7: std. error | Z7: =STDEV(Z9:Z508) -> 0.03613612097
A8: 4 | B8: 0.7490244572 | C8: 5 | E8: outcome | F8: count | G8: rel freq. | Q8: count | R8: est. prob | S8: sq error | U8: true
A9: 5 | B9: 0.9619164165 | C9: 6 | E9: 1 | F9: =FREQUENCY(C5:C104,E9:E14) -> 14 | G9: =F9/$F$16 -> 0.14 | P9: 1 | S9: =(R9-U9)^2 -> 0.02777777778 | U9: =1/6 -> 0.1666666667 | X9: 1 | Y9: 11 | Z9: 0.11
A10: 6 | B10: 0.408400667 | C10: 3 | E10: 2 | F10: 18 | G10: 0.18 | P10: 2 | S10: =(R10-U10)^2 -> 0.02777777778 | U10: =1/6 -> 0.1666666667 | X10: 2 | Y10: 11 | Z10: 0.11
A11: 7 | B11: 0.2349246193 | C11: 2 | E11: 3 | F11: 16 | G11: 0.16 | P11: 3 | S11: 0.02777777778 | U11: 0.1666666667 | X11: 3 | Y11: 18 | Z11: 0.18
A12: 8 | B12: 0.2928015714 | C12: 2 | E12: 4 | F12: 17 | G12: 0.17 | P12: 4 | S12: 0.02777777778 | U12: 0.1666666667 | X12: 4 | Y12: 18 | Z12: 0.18
A13: 9 | B13: 0.9544810868 | C13: 6 | E13: 5 | F13: 15 | G13: 0.15 | P13: 5 | S13: 0.02777777778 | U13: 0.1666666667 | X13: 5 | Y13: 21 | Z13: 0.21
A14: 10 | B14: 0.425705189 | C14: 3 | E14: 6 | F14: 20 | G14: 0.2 | P14: 6 | S14: 0.02777777778 | U14: 0.1666666667 | X14: 6 | Y14: 16 | Z14: 0.16
A15: 11 | B15: 0.701227632 | C15: 5 | P15: 7 | S15: 0.02777777778 | U15: 0.1666666667 | X15: 7 | Y15: 17 | Z15: 0.17
A16: 12 | B16: 0.06061379761 | C16: 1 | F16: =SUM(F9:F14) -> 100 | G16: =SUM(G9:G14) -> 1 | P16: 8 | S16: 0.02777777778 | U16: 0.1666666667 | X16: 8 | Y16: 17 | Z16: 0.17
A17: 13 | B17: 0.9689395365 | C17: 6 | P17: 9 | S17: 0.02777777778 | U17: 0.1666666667 | X17: 9 | Y17: 15 | Z17: 0.15
A18: 14 | B18: 0.3246298308 | C18: 2 | P18: 10 | S18: 0.02777777778 | U18: 0.1666666667 | X18: 10 | Y18: 13 | Z18: 0.13
A19: 15 | B19: 0.3289437401 | C19: 2 | E19: Expected count is | P19: 11 | S19: 0.02777777778 | U19: 0.1666666667 | X19: 11 | Y19: 17 | Z19: 0.17
A20: 16 | B20: 0.902688055 | C20: 6 | E20: 100 * 1/6 = | F20: =100*1/6 -> 16.66666667 | P20: 12 | S20: 0.02777777778 | U20: 0.1666666667 | X20: 12 | Y20: 16 | Z20: 0.16
A21: 17 | B21: 0.5350040306 | C21: 4 | P21: 13 | S21: 0.02777777778 | U21: 0.1666666667 | X21: 13 | Y21: 16 | Z21: 0.16
A22: 18 | B22: 0.02614981627 | C22: 1 | E22: distribution mean of X | P22: 14 | S22: 0.02777777778 | U22: 0.1666666667 | X22: 14 | Y22: 15 | Z22: 0.15
A23: 19 | B23: 0.7160428807 | C23: 5 | E23: 1/6*(1+2+3+4+5+6)= | F23: 3.5 | P23: 15 | S23: 0.02777777778 | U23: 0.1666666667 | X23: 15 | Y23: 15 | Z23: 0.15
A24: 20 | B24: 0.2373366416 | C24: 2 | P24: 16 | S24: 0.02777777778 | U24: 0.1666666667 | X24: 16 | Y24: 26 | Z24: 0.26
A25: 21 | B25: 0.8844366542 | C25: 6 | E25: Observed mean of X | P25: 17 | S25: 0.02777777778 | U25: 0.1666666667 | X25: 17 | Y25: 11 | Z25: 0.11
A26: 22 | B26: 0.6858050876 | C26: 5 | F26: =E9*G9+E10*G10+E11*G11+E12*G12+E13*G13+E14*G14 -> 3.61 | P26: 18 | S26: 0.02777777778 | U26: 0.1666666667 | X26: 18 | Y26: 18 | Z26: 0.18
A27: 23 | B27: 0.1957479347 | C27: 2 | P27: 19 | S27: 0.02777777778 | U27: 0.1666666667 | X27: 19 | Y27: 17 | Z27: 0.17
A28: 24 | B28: 0.7678194436 | C28: 5 | P28: 20 | S28: 0.02777777778 | U28: 0.1666666667 | X28: 20 | Y28: 16 | Z28: 0.16
A29: 25 | B29: 0.9439038202 | C29: 6 | X29: 21 | Y29: 14 | Z29: 0.14
A30: 26 | B30: 0.8368472823 | C30: 6 | Q30: average | R30: =AVERAGE(R9:R28) ->  | S30: true = | T30: =1/6 -> 0.1666666667 | X30: 22 | Y30: 13 | Z30: 0.13
A31: 27 | B31: 0.866139608 | C31: 6 | Q31: std. error | R31: =SQRT(SUM(S9:S28)/($P$28-1)) -> 0.170996392 | X31: 23 | Y31: 28 | Z31: 0.28
A32: 28 | B32: 0.7229497334 | C32: 5 | X32: 24 | Y32: 14 | Z32: 0.14
A33: 29 | B33: 0.4577498936 | C33: 3 | X33: 25 | Y33: 18 | Z33: 0.18
A34: 30 | B34: 0.3961851415 | C34: 3 | X34: 26 | Y34: 18 | Z34: 0.18
A35: 31 | B35: 0.07331029241 | C35: 1 | X35: 27 | Y35: 15 | Z35: 0.15
A36: 32 | B36: 0.4437603974 | C36: 3 | X36: 28 | Y36: 14 | Z36: 0.14
A37: 33 | B37: 0.272512567 | C37: 2 | X37: 29 | Y37: 19 | Z37: 0.19
A38: 34 | B38: 0.7704677579 | C38: 5 | X38: 30 | Y38: 19 | Z38: 0.19
A39: 35 | B39: 0.5832678849 | C39: 4 | X39: 31 | Y39: 18 | Z39: 0.18
A40: 36 | B40: 0.4034320128 | C40: 3 | X40: 32 | Y40: 15 | Z40: 0.15
A41: 37 | B41: 0.8631174907 | C41: 6 | X41: 33 | Y41: 14 | Z41: 0.14
A42: 38 | B42: 0.5169154801 | C42: 4 | X42: 34 | Y42: 18 | Z42: 0.18
A43: 39 | B43: 0.9127633823 | C43: 6 | X43: 35 | Y43: 9 | Z43: 0.09
A44: 40 | B44: 0.9633830454 | C44: 6 | X44: 36 | Y44: 18 | Z44: 0.18
A45: 41 | B45: 0.6670341871 | C45: 5 | X45: 37 | Y45: 11 | Z45: 0.11
A46: 42 | B46: 0.641768855 | C46: 4 | X46: 38 | Y46: 14 | Z46: 0.14
A47: 43 | B47: 0.904639316 | C47: 6 | X47: 39 | Y47: 13 | Z47: 0.13
A48: 44 | B48: 0.579792089 | C48: 4 | X48: 40 | Y48: 17 | Z48: 0.17
A49: 45 | B49: 0.6373334541 | C49: 4 | X49: 41 | Y49: 15 | Z49: 0.15
A50: 46 | B50: 0.1634505966 | C50: 1 | X50: 42 | Y50: 16 | Z50: 0.16
A51: 47 | B51: 0.1498988509 | C51: 1 | X51: 43 | Y51: 20 | Z51: 0.2
A52: 48 | B52: 0.1118836617 | C52: 1 | X52: 44 | Y52: 14 | Z52: 0.14
A53: 49 | B53: 0.2264910255 | C53: 2 | X53: 45 | Y53: 18 | Z53: 0.18
A54: 50 | B54: 0.8008652764 | C54: 5 | X54: 46 | Y54: 15 | Z54: 0.15
A55: 51 | B55: 0.7308949141 | C55: 5 | X55: 47 | Y55: 9 | Z55: 0.09
A56: 52 | B56: 0.148040145 | C56: 1 | X56: 48 | Y56: 16 | Z56: 0.16
A57: 53 | B57: 0.5714959804 | C57: 4 | X57: 49 | Y57: 17 | Z57: 0.17
A58: 54 | B58: 0.4143164733 | C58: 3 | X58: 50 | Y58: 21 | Z58: 0.21
A59: 55 | B59: 0.2073458856 | C59: 2 | X59: 51 | Y59: 20 | Z59: 0.2
A60: 56 | B60: 0.3345102739 | C60: 3 | X60: 52 | Y60: 15 | Z60: 0.15
A61: 57 | B61: 0.2538265695 | C61: 2 | X61: 53 | Y61: 17 | Z61: 0.17
A62: 58 | B62: 0.6924074486 | C62: 5 | X62: 54 | Y62: 18 | Z62: 0.18
A63: 59 | B63: 0.8680614911 | C63: 6 | X63: 55 | Y63: 21 | Z63: 0.21
A64: 60 | B64: 0.5723534028 | C64: 4 | X64: 56 | Y64: 15 | Z64: 0.15
A65: 61 | B65: 0.5611982589 | C65: 4 | X65: 57 | Y65: 17 | Z65: 0.17
A66: 62 | B66: 0.9768624206 | C66: 6 | X66: 58 | Y66: 19 | Z66: 0.19
A67: 63 | B67: 0.3421645668 | C67: 3 | X67: 59 | Y67: 17 | Z67: 0.17
A68: 64 | B68: 0.9143232679 | C68: 6 | X68: 60 | Y68: 21 | Z68: 0.21
A69: 65 | B69: 0.9654679812 | C69: 6 | X69: 61 | Y69: 14 | Z69: 0.14
A70: 66 | B70: =RAND() -> 0.5973123037 | C70: =INT(B70*6+1) -> 4 | X70: 62 | Y70: 18 | Z70: 0.18
A71: 67 | B71: 0.9133187504 | C71: 6 | X71: 63 | Y71: 12 | Z71: 0.12
A72: 68 | B72: 0.408751034 | C72: 3 | X72: 64 | Y72: 18 | Z72: 0.18
A73: 69 | B73: 0.5233927725 | C73: 4 | X73: 65 | Y73: 12 | Z73: 0.12
A74: 70 | B74: 0.3916774825 | C74: 3 | X74: 66 | Y74: 13 | Z74: 0.13
A75: 71 | B75: 0.1415182654 | C75: 1 | X75: 67 | Y75: 10 | Z75: 0.1
A76: 72 | B76: 0.3876390834 | C76: 3 | X76: 68 | Y76: 12 | Z76: 0.12
A77: 73 | B77: 0.1290455792 | C77: 1 | X77: 69 | Y77: 27 | Z77: 0.27
A78: 74 | B78: 0.2685803516 | C78: 2 | X78: 70 | Y78: 16 | Z78: 0.16
A79: 75 | B79: 0.8276812877 | C79: 5 | X79: 71 | Y79: 13 | Z79: 0.13
A80: 76 | B80: 0.3372701364 | C80: 3 | X80: 72 | Y80: 16 | Z80: 0.16
A81: 77 | B81: 0.08844198523 | C81: 1 | X81: 73 | Y81: 17 | Z81: 0.17
A82: 78 | B82: 0.1211220934 | C82: 1 | X82: 74 | Y82: 11 | Z82: 0.11
A83: 79 | B83: 0.1994877099 | C83: 2 | X83: 75 | Y83: 16 | Z83: 0.16
A84: 80 | B84: 0.07727784028 | C84: 1 | X84: 76 | Y84: 18 | Z84: 0.18
A85: 81 | B85: 0.4806107012 | C85: 3 | X85: 77 | Y85: 11 | Z85: 0.11
A86: 82 | B86: 0.8078291009 | C86: 5 | X86: 78 | Y86: 11 | Z86: 0.11
A87: 83 | B87: 0.1731103617 | C87: 2 | X87: 79 | Y87: 13 | Z87: 0.13
A88: 84 | B88: 0.2010444724 | C88: 2 | X88: 80 | Y88: 21 | Z88: 0.21
A89: 85 | B89: 0.5027547291 | C89: 4 | X89: 81 | Y89: 11 | Z89: 0.11
A90: 86 | B90: 0.197124278 | C90: 2 | X90: 82 | Y90: 15 | Z90: 0.15
A91: 87 | B91: 0.5826342479 | C91: 4 | X91: 83 | Y91: 19 | Z91: 0.19
A92: 88 | B92: 0.2415600551 | C92: 2 | X92: 84 | Y92: 18 | Z92: 0.18
A93: 89 | B93: 0.9176567162 | C93: 6 | X93: 85 | Y93: 15 | Z93: 0.15
A94: 90 | B94: 0.8667194489 | C94: 6 | X94: 86 | Y94: 14 | Z94: 0.14
A95: 91 | B95: 0.6281809739 | C95: 4 | X95: 87 | Y95: 12 | Z95: 0.12
A96: 92 | B96: 0.5668736663 | C96: 4 | X96: 88 | Y96: 17 | Z96: 0.17
A97: 93 | B97: 0.5160390557 | C97: 4 | X97: 89 | Y97: 15 | Z97: 0.15
A98: 94 | B98: 0.9275283958 | C98: 6 | X98: 90 | Y98: 9 | Z98: 0.09
A99: 95 | B99: 0.1059691855 | C99: 1 | X99: 91 | Y99: 13 | Z99: 0.13
A100: 96 | B100: 0.2332097269 | C100: 2 | X100: 92 | Y100: 20 | Z100: 0.2
A101: 97 | B101: 0.4318542227 | C101: 3 | X101: 93 | Y101: 17 | Z101: 0.17
A102: 98 | B102: 0.8123358125 | C102: 5 | X102: 94 | Y102: 16 | Z102: 0.16
A103: 99 | B103: 0.2182440376 | C103: 2 | X103: 95 | Y103: 15 | Z103: 0.15
A104: 100 | B104: 0.7469571573 | C104: 5 | X104: 96 | Y104: 16 | Z104: 0.16
X105: 97 | Y105: 15 | Z105: 0.15
X106: 98 | Y106: 15 | Z106: 0.15
X107: 99 | Y107: 19 | Z107: 0.19
X108: 100 | Y108: 19 | Z108: 0.19
X109: 101 | Y109: 19 | Z109: 0.19
X110: 102 | Y110: 8 | Z110: 0.08
X111: 103 | Y111: 23 | Z111: 0.23
X112: 104 | Y112: 18 | Z112: 0.18
X113: 105 | Y113: 19 | Z113: 0.19
X114: 106 | Y114: 20 | Z114: 0.2
X115: 107 | Y115: 14 | Z115: 0.14
X116: 108 | Y116: 12 | Z116: 0.12
X117: 109 | Y117: 19 | Z117: 0.19
X118: 110 | Y118: 13 | Z118: 0.13
X119: 111 | Y119: 17 | Z119: 0.17
X120: 112 | Y120: 18 | Z120: 0.18
X121: 113 | Y121: 19 | Z121: 0.19
X122: 114 | Y122: 13 | Z122: 0.13
X123: 115 | Y123: 15 | Z123: 0.15
X124: 116 | Y124: 18 | Z124: 0.18
X125: 117 | Y125: 15 | Z125: 0.15
X126: 118 | Y126: 23 | Z126: 0.23
X127: 119 | Y127: 20 | Z127: 0.2
X128: 120 | Y128: 15 | Z128: 0.15
X129: 121 | Y129: 20 | Z129: 0.2
X130: 122 | Y130: 14 | Z130: 0.14
X131: 123 | Y131: 16 | Z131: 0.16
X132: 124 | Y132: 9 | Z132: 0.09
X133: 125 | Y133: 21 | Z133: 0.21
X134: 126 | Y134: 24 | Z134: 0.24
X135: 127 | Y135: 15 | Z135: 0.15
X136: 128 | Y136: 15 | Z136: 0.15
X137: 129 | Y137: 22 | Z137: 0.22
X138: 130 | Y138: 12 | Z138: 0.12
X139: 131 | Y139: 17 | Z139: 0.17
X140: 132 | Y140: 17 | Z140: 0.17
X141: 133 | Y141: 17 | Z141: 0.17
X142: 134 | Y142: 15 | Z142: 0.15
X143: 135 | Y143: 17 | Z143: 0.17
X144: 136 | Y144: 20 | Z144: 0.2
X145: 137 | Y145: 11 | Z145: 0.11
X146: 138 | Y146: 15 | Z146: 0.15
X147: 139 | Y147: 17 | Z147: 0.17
X148: 140 | Y148: 21 | Z148: 0.21
X149: 141 | Y149: 23 | Z149: 0.23
X150: 142 | Y150: 21 | Z150: 0.21
X151: 143 | Y151: 11 | Z151: 0.11
X152: 144 | Y152: 21 | Z152: 0.21
X153: 145 | Y153: 22 | Z153: 0.22
X154: 146 | Y154: 25 | Z154: 0.25
X155: 147 | Y155: 14 | Z155: 0.14
X156: 148 | Y156: 17 | Z156: 0.17
X157: 149 | Y157: 23 | Z157: 0.23
X158: 150 | Y158: 11 | Z158: 0.11
X159: 151 | Y159: 12 | Z159: 0.12
X160: 152 | Y160: 19 | Z160: 0.19
X161: 153 | Y161: 17 | Z161: 0.17
X162: 154 | Y162: 18 | Z162: 0.18
X163: 155 | Y163: 23 | Z163: 0.23
X164: 156 | Y164: 15 | Z164: 0.15
X165: 157 | Y165: 24 | Z165: 0.24
X166: 158 | Y166: 17 | Z166: 0.17
X167: 159 | Y167: 11 | Z167: 0.11
X168: 160 | Y168: 11 | Z168: 0.11
X169: 161 | Y169: 16 | Z169: 0.16
X170: 162 | Y170: 15 | Z170: 0.15
X171: 163 | Y171: 17 | Z171: 0.17
X172: 164 | Y172: 15 | Z172: 0.15
X173: 165 | Y173: 19 | Z173: 0.19
X174: 166 | Y174: 11 | Z174: 0.11
X175: 167 | Y175: 18 | Z175: 0.18
X176: 168 | Y176: 18 | Z176: 0.18
X177: 169 | Y177: 16 | Z177: 0.16
X178: 170 | Y178: 19 | Z178: 0.19
X179: 171 | Y179: 16 | Z179: 0.16
X180: 172 | Y180: 17 | Z180: 0.17
X181: 173 | Y181: 17 | Z181: 0.17
X182: 174 | Y182: 19 | Z182: 0.19
X183: 175 | Y183: 15 | Z183: 0.15
X184: 176 | Y184: 26 | Z184: 0.26
X185: 177 | Y185: 14 | Z185: 0.14
X186: 178 | Y186: 10 | Z186: 0.1
X187: 179 | Y187: 15 | Z187: 0.15
X188: 180 | Y188: 15 | Z188: 0.15
X189: 181 | Y189: 10 | Z189: 0.1
X190: 182 | Y190: 13 | Z190: 0.13
X191: 183 | Y191: 15 | Z191: 0.15
X192: 184 | Y192: 23 | Z192: 0.23
X193: 185 | Y193: 16 | Z193: 0.16
X194: 186 | Y194: 21 | Z194: 0.21
X195: 187 | Y195: 7 | Z195: 0.07
X196: 188 | Y196: 15 | Z196: 0.15
X197: 189 | Y197: 18 | Z197: 0.18
X198: 190 | Y198: 18 | Z198: 0.18
X199: 191 | Y199: 11 | Z199: 0.11
X200: 192 | Y200: 20 | Z200: 0.2
X201: 193 | Y201: 19 | Z201: 0.19
... 307 more rows

Sheet 1000
S2: Have cursor in BLUE cell
S3: before hitting this button!
A4: roll | B4: U[0,1] | C4: outcome
A5: 1 | B5: =RAND() -> 0.5160640513 | C5: =INT(B5*6+1) -> 4 | P5: Results of experiments
A6: 2 | B6: =RAND() -> 0.8104864201 | C6: =INT(B6*6+1) -> 5 | P6: estimated probability of rolling a 4: | Y6: average | Z6: =AVERAGE(Z9:Z508) -> 0.165588
A7: 3 | B7: 0.9508953176 | C7: 6 | Y7: std. error | Z7: =STDEV(Z9:Z508) -> 0.01205391429
A8: 4 | B8: 0.7550334014 | C8: 5 | E8: outcome | F8: count | G8: rel freq. | Q8: count | R8: est. prob | S8: sq error | U8: true
A9: 5 | B9: 0.4268506011 | C9: 3 | E9: 1 | F9: =FREQUENCY(C5:C1004,E9:E14) -> 154 | G9: =F9/$F$16 -> 0.154 | P9: 1 | S9: =(R9-U9)^2 -> 0.02777777778 | U9: =1/6 -> 0.1666666667 | X9: 1 | Y9: 169 | Z9: 0.169
A10: 6 | B10: 0.7724251416 | C10: 5 | E10: 2 | F10: 154 | G10: 0.154 | P10: 2 | S10: =(R10-U10)^2 -> 0.02777777778 | U10: =1/6 -> 0.1666666667 | X10: 2 | Y10: 157 | Z10: 0.157
A11: 7 | B11: 0.2797547521 | C11: 2 | E11: 3 | F11: 178 | G11: 0.178 | P11: 3 | S11: 0.02777777778 | U11: 0.1666666667 | X11: 3 | Y11: 177 | Z11: 0.177
A12: 8 | B12: 0.4569044883 | C12: 3 | E12: 4 | F12: 161 | G12: 0.161 | P12: 4 | S12: 0.02777777778 | U12: 0.1666666667 | X12: 4 | Y12: 168 | Z12: 0.168
A13: 9 | B13: 0.6743691076 | C13: 5 | E13: 5 | F13: 178 | G13: 0.178 | P13: 5 | S13: 0.02777777778 | U13: 0.1666666667 | X13: 5 | Y13: 178 | Z13: 0.178
A14: 10 | B14: 0.3303846677 | C14: 2 | E14: 6 | F14: 175 | G14: 0.175 | P14: 6 | S14: 0.02777777778 | U14: 0.1666666667 | X14: 6 | Y14: 161 | Z14: 0.161
A15: 11 | B15: 0.5566120875 | C15: 4 | P15: 7 | S15: 0.02777777778 | U15: 0.1666666667 | X15: 7 | Y15: 176 | Z15: 0.176
A16: 12 | B16: 0.8185836644 | C16: 5 | F16: =SUM(F9:F14) -> 1000 | G16: =SUM(G9:G14) -> 1 | P16: 8 | S16: 0.02777777778 | U16: 0.1666666667 | X16: 8 | Y16: 193 | Z16: 0.193
A17: 13 | B17: 0.9210168652 | C17: 6 | P17: 9 | S17: 0.02777777778 | U17: 0.1666666667 | X17: 9 | Y17: 162 | Z17: 0.162
A18: 14 | B18: 0.07502804031 | C18: 1 | P18: 10 | S18: 0.02777777778 | U18: 0.1666666667 | X18: 10 | Y18: 177 | Z18: 0.177
A19: 15 | B19: 0.2140685757 | C19: 2 | E19: Expected count is | P19: 11 | S19: 0.02777777778 | U19: 0.1666666667 | X19: 11 | Y19: 172 | Z19: 0.172
A20: 16 | B20: 0.9456170364 | C20: 6 | E20: 1000 * 1/6 = | F20: =1000*1/6 -> 166.6666667 | P20: 12 | S20: 0.02777777778 | U20: 0.1666666667 | X20: 12 | Y20: 165 | Z20: 0.165
A21: 17 | B21: 0.4445972843 | C21: 3 | P21: 13 | S21: 0.02777777778 | U21: 0.1666666667 | X21: 13 | Y21: 187 | Z21: 0.187
A22: 18 | B22: 0.344200378 | C22: 3 | E22: distribution mean of X | P22: 14 | S22: 0.02777777778 | U22: 0.1666666667 | X22: 14 | Y22: 160 | Z22: 0.16
A23: 19 | B23: 0.9655384228 | C23: 6 | E23: 1/6*(1+2+3+4+5+6)= | F23: 3.5 | P23: 15 | S23: 0.02777777778 | U23: 0.1666666667 | X23: 15 | Y23: 160 | Z23: 0.16
A24: 20 | B24: 0.8097385425 | C24: 5 | P24: 16 | S24: 0.02777777778 | U24: 0.1666666667 | X24: 16 | Y24: 175 | Z24: 0.175
A25: 21 | B25: 0.3351008087 | C25: 3 | E25: Observed mean of X | P25: 17 | S25: 0.02777777778 | U25: 0.1666666667 | X25: 17 | Y25: 182 | Z25: 0.182
A26: 22 | B26: 0.3429150989 | C26: 3 | F26: =E9*G9+E10*G10+E11*G11+E12*G12+E13*G13+E14*G14 -> 3.58 | P26: 18 | S26: 0.02777777778 | U26: 0.1666666667 | X26: 18 | Y26: 163 | Z26: 0.163
A27: 23 | B27: 0.50655804 | C27: 4 | P27: 19 | S27: 0.02777777778 | U27: 0.1666666667 | X27: 19 | Y27: 166 | Z27: 0.166
A28: 24 | B28: 0.3583710817 | C28: 3 | P28: 20 | S28: 0.02777777778 | U28: 0.1666666667 | X28: 20 | Y28: 165 | Z28: 0.165
A29: 25 | B29: 0.2521410338 | C29: 2 | X29: 21 | Y29: 171 | Z29: 0.171
A30: 26 | B30: 0.8879436784 | C30: 6 | Q30: average | R30: =AVERAGE(R9:R28) ->  | S30: true = | T30: =1/6 -> 0.1666666667 | X30: 22 | Y30: 172 | Z30: 0.172
A31: 27 | B31: 0.7710847141 | C31: 5 | Q31: std. error | R31: =SQRT(SUM(S9:S28)/($P$28-1)) -> 0.170996392 | X31: 23 | Y31: 177 | Z31: 0.177
A32: 28 | B32: 0.3612947278 | C32: 3 | X32: 24 | Y32: 141 | Z32: 0.141
A33: 29 | B33: 0.9726890027 | C33: 6 | X33: 25 | Y33: 155 | Z33: 0.155
A34: 30 | B34: 0.3924807487 | C34: 3 | X34: 26 | Y34: 184 | Z34: 0.184
A35: 31 | B35: 0.9504148471 | C35: 6 | X35: 27 | Y35: 146 | Z35: 0.146
A36: 32 | B36: 0.01776313411 | C36: 1 | X36: 28 | Y36: 162 | Z36: 0.162
A37: 33 | B37: 0.1741513838 | C37: 2 | X37: 29 | Y37: 148 | Z37: 0.148
A38: 34 | B38: 0.8231149869 | C38: 5 | X38: 30 | Y38: 141 | Z38: 0.141
A39: 35 | B39: 0.1063919519 | C39: 1 | X39: 31 | Y39: 150 | Z39: 0.15
A40: 36 | B40: 0.1577534451 | C40: 1 | X40: 32 | Y40: 155 | Z40: 0.155
A41: 37 | B41: 0.5084693928 | C41: 4 | X41: 33 | Y41: 155 | Z41: 0.155
A42: 38 | B42: 0.5118422508 | C42: 4 | X42: 34 | Y42: 167 | Z42: 0.167
A43: 39 | B43: 0.7417843613 | C43: 5 | X43: 35 | Y43: 169 | Z43: 0.169
A44: 40 | B44: 0.9580205836 | C44: 6 | X44: 36 | Y44: 153 | Z44: 0.153
A45: 41 | B45: 0.9336074434 | C45: 6 | X45: 37 | Y45: 169 | Z45: 0.169
A46: 42 | B46: 0.3361632433 | C46: 3 | X46: 38 | Y46: 166 | Z46: 0.166
A47: 43 | B47: 0.756697403 | C47: 5 | X47: 39 | Y47: 179 | Z47: 0.179
A48: 44 | B48: 0.4389673954 | C48: 3 | X48: 40 | Y48: 189 | Z48: 0.189
A49: 45 | B49: 0.1470948411 | C49: 1 | X49: 41 | Y49: 182 | Z49: 0.182
A50: 46 | B50: 0.7895820357 | C50: 5 | X50: 42 | Y50: 182 | Z50: 0.182
A51: 47 | B51: 0.5119965422 | C51: 4 | X51: 43 | Y51: 176 | Z51: 0.176
A52: 48 | B52: 0.9346880939 | C52: 6 | X52: 44 | Y52: 163 | Z52: 0.163
A53: 49 | B53: 0.2717161814 | C53: 2 | X53: 45 | Y53: 166 | Z53: 0.166
A54: 50 | B54: 0.5582126434 | C54: 4 | X54: 46 | Y54: 175 | Z54: 0.175
A55: 51 | B55: 0.2570047364 | C55: 2 | X55: 47 | Y55: 171 | Z55: 0.171
A56: 52 | B56: 0.7823121764 | C56: 5 | X56: 48 | Y56: 169 | Z56: 0.169
A57: 53 | B57: 0.9591637911 | C57: 6 | X57: 49 | Y57: 171 | Z57: 0.171
A58: 54 | B58: 0.5663195445 | C58: 4 | X58: 50 | Y58: 159 | Z58: 0.159
A59: 55 | B59: 0.4789187988 | C59: 3 | X59: 51 | Y59: 186 | Z59: 0.186
A60: 56 | B60: 0.8525893884 | C60: 6 | X60: 52 | Y60: 170 | Z60: 0.17
A61: 57 | B61: 0.4545547327 | C61: 3 | X61: 53 | Y61: 148 | Z61: 0.148
A62: 58 | B62: 0.1885982491 | C62: 2 | X62: 54 | Y62: 178 | Z62: 0.178
A63: 59 | B63: 0.8047455096 | C63: 5 | X63: 55 | Y63: 184 | Z63: 0.184
A64: 60 | B64: 0.9669554829 | C64: 6 | X64: 56 | Y64: 157 | Z64: 0.157
A65: 61 | B65: 0.3778956233 | C65: 3 | X65: 57 | Y65: 162 | Z65: 0.162
A66: 62 | B66: 0.07134413681 | C66: 1 | X66: 58 | Y66: 154 | Z66: 0.154
A67: 63 | B67: 0.7994719599 | C67: 5 | X67: 59 | Y67: 182 | Z67: 0.182
A68: 64 | B68: 0.8618390318 | C68: 6 | X68: 60 | Y68: 158 | Z68: 0.158
A69: 65 | B69: 0.08339997685 | C69: 1 | X69: 61 | Y69: 146 | Z69: 0.146
A70: 66 | B70: =RAND() -> 0.310915527 | C70: =INT(B70*6+1) -> 2 | X70: 62 | Y70: 162 | Z70: 0.162
A71: 67 | B71: 0.6875024858 | C71: 5 | X71: 63 | Y71: 167 | Z71: 0.167
A72: 68 | B72: 0.1251801053 | C72: 1 | X72: 64 | Y72: 171 | Z72: 0.171
A73: 69 | B73: 0.4771560844 | C73: 3 | X73: 65 | Y73: 155 | Z73: 0.155
A74: 70 | B74: 0.8641684911 | C74: 6 | X74: 66 | Y74: 170 | Z74: 0.17
A75: 71 | B75: 0.3208938699 | C75: 2 | X75: 67 | Y75: 164 | Z75: 0.164
A76: 72 | B76: 0.7725245849 | C76: 5 | X76: 68 | Y76: 163 | Z76: 0.163
A77: 73 | B77: 0.1077290667 | C77: 1 | X77: 69 | Y77: 175 | Z77: 0.175
A78: 74 | B78: 0.5905479849 | C78: 4 | X78: 70 | Y78: 147 | Z78: 0.147
A79: 75 | B79: 0.3083925303 | C79: 2 | X79: 71 | Y79: 161 | Z79: 0.161
A80: 76 | B80: 0.9499660207 | C80: 6 | X80: 72 | Y80: 175 | Z80: 0.175
A81: 77 | B81: 0.6491669749 | C81: 4 | X81: 73 | Y81: 163 | Z81: 0.163
A82: 78 | B82: 0.3033427747 | C82: 2 | X82: 74 | Y82: 145 | Z82: 0.145
A83: 79 | B83: 0.215806481 | C83: 2 | X83: 75 | Y83: 133 | Z83: 0.133
A84: 80 | B84: 0.5098119432 | C84: 4 | X84: 76 | Y84: 171 | Z84: 0.171
A85: 81 | B85: 0.7093120114 | C85: 5 | X85: 77 | Y85: 157 | Z85: 0.157
A86: 82 | B86: 0.05886353065 | C86: 1 | X86: 78 | Y86: 168 | Z86: 0.168
A87: 83 | B87: 0.1914081734 | C87: 2 | X87: 79 | Y87: 158 | Z87: 0.158
A88: 84 | B88: 0.7005926455 | C88: 5 | X88: 80 | Y88: 169 | Z88: 0.169
A89: 85 | B89: 0.856529718 | C89: 6 | X89: 81 | Y89: 162 | Z89: 0.162
A90: 86 | B90: 0.7177248162 | C90: 5 | X90: 82 | Y90: 165 | Z90: 0.165
A91: 87 | B91: 0.4288479468 | C91: 3 | X91: 83 | Y91: 178 | Z91: 0.178
A92: 88 | B92: 0.8184925961 | C92: 5 | X92: 84 | Y92: 179 | Z92: 0.179
A93: 89 | B93: 0.9873692939 | C93: 6 | X93: 85 | Y93: 170 | Z93: 0.17
A94: 90 | B94: 0.792427132 | C94: 5 | X94: 86 | Y94: 167 | Z94: 0.167
A95: 91 | B95: 0.0794945937 | C95: 1 | X95: 87 | Y95: 150 | Z95: 0.15
A96: 92 | B96: 0.7295339362 | C96: 5 | X96: 88 | Y96: 157 | Z96: 0.157
A97: 93 | B97: 0.7041250889 | C97: 5 | X97: 89 | Y97: 151 | Z97: 0.151
A98: 94 | B98: 0.7498648156 | C98: 5 | X98: 90 | Y98: 154 | Z98: 0.154
A99: 95 | B99: 0.3274722562 | C99: 2 | X99: 91 | Y99: 171 | Z99: 0.171
A100: 96 | B100: 0.194250563 | C100: 2 | X100: 92 | Y100: 187 | Z100: 0.187
A101: 97 | B101: 0.03260775557 | C101: 1 | X101: 93 | Y101: 151 | Z101: 0.151
A102: 98 | B102: 0.7377362152 | C102: 5 | X102: 94 | Y102: 156 | Z102: 0.156
A103: 99 | B103: 0.1765466779 | C103: 2 | X103: 95 | Y103: 160 | Z103: 0.16
A104: 100 | B104: 0.893824259 | C104: 6 | X104: 96 | Y104: 173 | Z104: 0.173
A105: 101 | B105: 0.8084505724 | C105: 5 | X105: 97 | Y105: 174 | Z105: 0.174
A106: 102 | B106: 0.3587583837 | C106: 3 | X106: 98 | Y106: 178 | Z106: 0.178
A107: 103 | B107: 0.006745012612 | C107: 1 | X107: 99 | Y107: 161 | Z107: 0.161
A108: 104 | B108: 0.5566627725 | C108: 4 | X108: 100 | Y108: 158 | Z108: 0.158
A109: 105 | B109: 0.2905212137 | C109: 2 | X109: 101 | Y109: 173 | Z109: 0.173
A110: 106 | B110: 0.7832492464 | C110: 5 | X110: 102 | Y110: 190 | Z110: 0.19
A111: 107 | B111: 0.5758213732 | C111: 4 | X111: 103 | Y111: 173 | Z111: 0.173
A112: 108 | B112: 0.6358059631 | C112: 4 | X112: 104 | Y112: 160 | Z112: 0.16
A113: 109 | B113: 0.1869561373 | C113: 2 | X113: 105 | Y113: 156 | Z113: 0.156
A114: 110 | B114: 0.1659148369 | C114: 1 | X114: 106 | Y114: 168 | Z114: 0.168
A115: 111 | B115: 0.1388204183 | C115: 1 | X115: 107 | Y115: 153 | Z115: 0.153
A116: 112 | B116: 0.5179042816 | C116: 4 | X116: 108 | Y116: 145 | Z116: 0.145
A117: 113 | B117: 0.698827638 | C117: 5 | X117: 109 | Y117: 160 | Z117: 0.16
A118: 114 | B118: 0.7689405108 | C118: 5 | X118: 110 | Y118: 182 | Z118: 0.182
A119: 115 | B119: 0.4346396306 | C119: 3 | X119: 111 | Y119: 166 | Z119: 0.166
A120: 116 | B120: 0.9791850789 | C120: 6 | X120: 112 | Y120: 155 | Z120: 0.155
A121: 117 | B121: 0.3519924789 | C121: 3 | X121: 113 | Y121: 174 | Z121: 0.174
A122: 118 | B122: 0.3773503082 | C122: 3 | X122: 114 | Y122: 162 | Z122: 0.162
A123: 119 | B123: 0.09589201951 | C123: 1 | X123: 115 | Y123: 173 | Z123: 0.173
A124: 120 | B124: 0.1485092095 | C124: 1 | X124: 116 | Y124: 147 | Z124: 0.147
A125: 121 | B125: 0.531060829 | C125: 4 | X125: 117 | Y125: 173 | Z125: 0.173
A126: 122 | B126: 0.5407697717 | C126: 4 | X126: 118 | Y126: 154 | Z126: 0.154
A127: 123 | B127: 0.9394628443 | C127: 6 | X127: 119 | Y127: 164 | Z127: 0.164
A128: 124 | B128: 0.2788700053 | C128: 2 | X128: 120 | Y128: 156 | Z128: 0.156
A129: 125 | B129: 0.3398999483 | C129: 3 | X129: 121 | Y129: 149 | Z129: 0.149
A130: 126 | B130: 0.03592320929 | C130: 1 | X130: 122 | Y130: 163 | Z130: 0.163
A131: 127 | B131: 0.1378518304 | C131: 1 | X131: 123 | Y131: 166 | Z131: 0.166
A132: 128 | B132: 0.9006637883 | C132: 6 | X132: 124 | Y132: 170 | Z132: 0.17
A133: 129 | B133: 0.1385358655 | C133: 1 | X133: 125 | Y133: 175 | Z133: 0.175
A134: 130 | B134: =RAND() -> 0.9834860291 | C134: =INT(B134*6+1) -> 6 | X134: 126 | Y134: 169 | Z134: 0.169
A135: 131 | B135: 0.0691783822 | C135: 1 | X135: 127 | Y135: 192 | Z135: 0.192
A136: 132 | B136: 0.2837707814 | C136: 2 | X136: 128 | Y136: 182 | Z136: 0.182
A137: 133 | B137: 0.8502542435 | C137: 6 | X137: 129 | Y137: 180 | Z137: 0.18
A138: 134 | B138: 0.6642637334 | C138: 4 | X138: 130 | Y138: 175 | Z138: 0.175
A139: 135 | B139: 0.5628259246 | C139: 4 | X139: 131 | Y139: 152 | Z139: 0.152
A140: 136 | B140: 0.3827169264 | C140: 3 | X140: 132 | Y140: 187 | Z140: 0.187
A141: 137 | B141: 0.1773203865 | C141: 2 | X141: 133 | Y141: 170 | Z141: 0.17
A142: 138 | B142: 0.8170349059 | C142: 5 | X142: 134 | Y142: 176 | Z142: 0.176
A143: 139 | B143: 0.4681990812 | C143: 3 | X143: 135 | Y143: 146 | Z143: 0.146
A144: 140 | B144: 0.7798291817 | C144: 5 | X144: 136 | Y144: 147 | Z144: 0.147
A145: 141 | B145: 0.08462919829 | C145: 1 | X145: 137 | Y145: 156 | Z145: 0.156
A146: 142 | B146: 0.510098296 | C146: 4 | X146: 138 | Y146: 156 | Z146: 0.156
A147: 143 | B147: 0.3067626501 | C147: 2 | X147: 139 | Y147: 162 | Z147: 0.162
A148: 144 | B148: 0.9559243972 | C148: 6 | X148: 140 | Y148: 159 | Z148: 0.159
A149: 145 | B149: 0.1063490856 | C149: 1 | X149: 141 | Y149: 159 | Z149: 0.159
A150: 146 | B150: 0.3426236269 | C150: 3 | X150: 142 | Y150: 165 | Z150: 0.165
A151: 147 | B151: 0.5134840118 | C151: 4 | X151: 143 | Y151: 143 | Z151: 0.143
A152: 148 | B152: 0.3902289722 | C152: 3 | X152: 144 | Y152: 151 | Z152: 0.151
A153: 149 | B153: 0.3268594174 | C153: 2 | X153: 145 | Y153: 158 | Z153: 0.158
A154: 150 | B154: 0.4898215902 | C154: 3 | X154: 146 | Y154: 144 | Z154: 0.144
A155: 151 | B155: 0.6329902804 | C155: 4 | X155: 147 | Y155: 175 | Z155: 0.175
A156: 152 | B156: 0.5043122856 | C156: 4 | X156: 148 | Y156: 164 | Z156: 0.164
A157: 153 | B157: 0.04456397711 | C157: 1 | X157: 149 | Y157: 181 | Z157: 0.181
A158: 154 | B158: 0.6579435216 | C158: 4 | X158: 150 | Y158: 185 | Z158: 0.185
A159: 155 | B159: 0.01712533636 | C159: 1 | X159: 151 | Y159: 165 | Z159: 0.165
A160: 156 | B160: 0.8018208246 | C160: 5 | X160: 152 | Y160: 165 | Z160: 0.165
A161: 157 | B161: 0.9680329698 | C161: 6 | X161: 153 | Y161: 185 | Z161: 0.185
A162: 158 | B162: 0.2932867045 | C162: 2 | X162: 154 | Y162: 162 | Z162: 0.162
A163: 159 | B163: 0.6973530472 | C163: 5 | X163: 155 | Y163: 188 | Z163: 0.188
A164: 160 | B164: 0.3435139956 | C164: 3 | X164: 156 | Y164: 158 | Z164: 0.158
A165: 161 | B165: 0.3949460369 | C165: 3 | X165: 157 | Y165: 173 | Z165: 0.173
A166: 162 | B166: 0.882863386 | C166: 6 | X166: 158 | Y166: 178 | Z166: 0.178
A167: 163 | B167: 0.002944433314 | C167: 1 | X167: 159 | Y167: 191 | Z167: 0.191
A168: 164 | B168: 0.8271347999 | C168: 5 | X168: 160 | Y168: 174 | Z168: 0.174
A169: 165 | B169: 0.2268386084 | C169: 2 | X169: 161 | Y169: 147 | Z169: 0.147
A170: 166 | B170: 0.6827052893 | C170: 5 | X170: 162 | Y170: 171 | Z170: 0.171
A171: 167 | B171: 0.4207341087 | C171: 3 | X171: 163 | Y171: 163 | Z171: 0.163
A172: 168 | B172: 0.7244784099 | C172: 5 | X172: 164 | Y172: 174 | Z172: 0.174
A173: 169 | B173: 0.1026509511 | C173: 1 | X173: 165 | Y173: 154 | Z173: 0.154
A174: 170 | B174: 0.4963962028 | C174: 3 | X174: 166 | Y174: 169 | Z174: 0.169
A175: 171 | B175: 0.5092312984 | C175: 4 | X175: 167 | Y175: 172 | Z175: 0.172
A176: 172 | B176: 0.3076480022 | C176: 2 | X176: 168 | Y176: 166 | Z176: 0.166
A177: 173 | B177: 0.671872138 | C177: 5 | X177: 169 | Y177: 162 | Z177: 0.162
A178: 174 | B178: 0.3678473494 | C178: 3 | X178: 170 | Y178: 157 | Z178: 0.157
A179: 175 | B179: 0.7745656636 | C179: 5 | X179: 171 | Y179: 152 | Z179: 0.152
A180: 176 | B180: 0.9445916228 | C180: 6 | X180: 172 | Y180: 184 | Z180: 0.184
A181: 177 | B181: 0.0397420858 | C181: 1 | X181: 173 | Y181: 193 | Z181: 0.193
A182: 178 | B182: 0.4389547729 | C182: 3 | X182: 174 | Y182: 163 | Z182: 0.163
A183: 179 | B183: 0.6371839768 | C183: 4 | X183: 175 | Y183: 176 | Z183: 0.176
A184: 180 | B184: 0.5795385543 | C184: 4 | X184: 176 | Y184: 168 | Z184: 0.168
A185: 181 | B185: 0.3277110051 | C185: 2 | X185: 177 | Y185: 167 | Z185: 0.167
A186: 182 | B186: 0.1682246961 | C186: 2 | X186: 178 | Y186: 176 | Z186: 0.176
A187: 183 | B187: 0.7725386192 | C187: 5 | X187: 179 | Y187: 163 | Z187: 0.163
A188: 184 | B188: 0.2139282086 | C188: 2 | X188: 180 | Y188: 175 | Z188: 0.175
A189: 185 | B189: 0.004878112193 | C189: 1 | X189: 181 | Y189: 184 | Z189: 0.184
A190: 186 | B190: 0.8826209323 | C190: 6 | X190: 182 | Y190: 133 | Z190: 0.133
A191: 187 | B191: 0.1772068748 | C191: 2 | X191: 183 | Y191: 150 | Z191: 0.15
A192: 188 | B192: 0.9385620887 | C192: 6 | X192: 184 | Y192: 178 | Z192: 0.178
A193: 189 | B193: 0.483636929 | C193: 3 | X193: 185 | Y193: 169 | Z193: 0.169
A194: 190 | B194: 0.1586236256 | C194: 1 | X194: 186 | Y194: 175 | Z194: 0.175
A195: 191 | B195: 0.3030439338 | C195: 2 | X195: 187 | Y195: 167 | Z195: 0.167
A196: 192 | B196: 0.8631124202 | C196: 6 | X196: 188 | Y196: 167 | Z196: 0.167
A197: 193 | B197: 0.913540549 | C197: 6 | X197: 189 | Y197: 165 | Z197: 0.165
A198: 194 | B198: =RAND() -> 0.1267669508 | C198: =INT(B198*6+1) -> 1 | X198: 190 | Y198: 177 | Z198: 0.177
A199: 195 | B199: 0.4083593974 | C199: 3 | X199: 191 | Y199: 168 | Z199: 0.168
A200: 196 | B200: 0.2997625482 | C200: 2 | X200: 192 | Y200: 164 | Z200: 0.164
A201: 197 | B201: 0.8524320352 | C201: 6 | X201: 193 | Y201: 167 | Z201: 0.167
... 803 more rows

Sheet 10000
S2: Have cursor in BLUE cell
S3: before hitting this button!
A4: roll | B4: U[0,1] | C4: outcome
A5: 1 | B5: =RAND() -> 0.6750491291 | C5: =INT(B5*6+1) -> 5 | P5: Results of experiments | X5: =RANDBETWEEN(1,6) -> 5 | Y5: 5 | Z5: 6 | AA5: 1 | AB5: 3 | AC5: 3 | AD5: 6 | AE5: 6 | AF5: 5 | AG5: 5
A6: 2 | B6: =RAND() -> 0.1647117128 | C6: =INT(B6*6+1) -> 1 | P6: estimated probability of rolling a 4: | X6: 4 | Y6: 1 | Z6: 2 | AA6: 2 | AB6: 1 | AC6: 6 | AD6: 2 | AE6: 6 | AF6: 6 | AG6: 6 | AK6: average | AL6: =AVERAGE(AL9:AL508) -> 0.166714
A7: 3 | B7: 0.1609822452 | C7: 1 | X7: 1 | Y7: 6 | Z7: 2 | AA7: 5 | AB7: 6 | AC7: 1 | AD7: 5 | AE7: 5 | AF7: 6 | AG7: 3 | AK7: std. error | AL7: =STDEV(AL9:AL508) -> 0.003648092812
A8: 4 | B8: 0.8569248989 | C8: 6 | E8: outcome | F8: count | G8: rel freq. | Q8: count | R8: est. prob | S8: sq error | U8: true | X8: 1 | Y8: 4 | Z8: 6 | AA8: 6 | AB8: 1 | AC8: 1 | AD8: 1 | AE8: 6 | AF8: 6 | AG8: 5
A9: 5 | B9: 0.6766762222 | C9: 5 | E9: 1 | F9: =FREQUENCY(X5:AG1004,E9:E14) -> 1662 | G9: =F9/$F$16 -> 0.1662 | P9: 1 | S9: =(R9-U9)^2 -> 0.02777777778 | U9: =1/6 -> 0.1666666667 | X9: 1 | Y9: 2 | Z9: 2 | AA9: 4 | AB9: 5 | AC9: 5 | AD9: 4 | AE9: 6 | AF9: 1 | AG9: 6 | AJ9: 1 | AK9: 1652 | AL9: 0.1652
A10: 6 | B10: 0.8103637874 | C10: 5 | E10: 2 | F10: 1659 | G10: 0.1659 | P10: 2 | S10: =(R10-U10)^2 -> 0.02777777778 | U10: =1/6 -> 0.1666666667 | X10: 5 | Y10: 3 | Z10: 3 | AA10: 6 | AB10: 5 | AC10: 3 | AD10: 1 | AE10: 1 | AF10: 1 | AG10: 3 | AJ10: 2 | AK10: 1594 | AL10: 0.1594
A11: 7 | B11: 0.6824639281 | C11: 5 | E11: 3 | F11: 1679 | G11: 0.1679 | P11: 3 | S11: 0.02777777778 | U11: 0.1666666667 | X11: 6 | Y11: 3 | Z11: 1 | AA11: 3 | AB11: 1 | AC11: 3 | AD11: 1 | AE11: 6 | AF11: 3 | AG11: 4 | AJ11: 3 | AK11: 1629 | AL11: 0.1629
A12: 8 | B12: 0.5419843189 | C12: 4 | E12: 4 | F12: 1642 | G12: 0.1642 | P12: 4 | S12: 0.02777777778 | U12: 0.1666666667 | X12: 4 | Y12: 3 | Z12: 2 | AA12: 2 | AB12: 3 | AC12: 3 | AD12: 3 | AE12: 3 | AF12: 2 | AG12: 3 | AJ12: 4 | AK12: 1729 | AL12: 0.1729
A13: 9 | B13: 0.2140680276 | C13: 2 | E13: 5 | F13: 1664 | G13: 0.1664 | P13: 5 | S13: 0.02777777778 | U13: 0.1666666667 | X13: 1 | Y13: 3 | Z13: 2 | AA13: 4 | AB13: 5 | AC13: 5 | AD13: 3 | AE13: 4 | AF13: 1 | AG13: 2 | AJ13: 5 | AK13: 1666 | AL13: 0.1666
A14: 10 | B14: 0.6416748888 | C14: 4 | E14: 6 | F14: 1694 | G14: 0.1694 | P14: 6 | S14: 0.02777777778 | U14: 0.1666666667 | X14: 1 | Y14: 5 | Z14: 2 | AA14: 6 | AB14: 4 | AC14: 4 | AD14: 1 | AE14: 6 | AF14: 5 | AG14: 1 | AJ14: 6 | AK14: 1629 | AL14: 0.1629
A15: 11 | B15: 0.1096151951 | C15: 1 | P15: 7 | S15: 0.02777777778 | U15: 0.1666666667 | X15: 4 | Y15: 4 | Z15: 6 | AA15: 4 | AB15: 3 | AC15: 4 | AD15: 4 | AE15: 1 | AF15: 6 | AG15: 4 | AJ15: 7 | AK15: 1657 | AL15: 0.1657
A16: 12 | B16: 0.9144482686 | C16: 6 | F16: =SUM(F9:F14) -> 10000 | G16: =SUM(G9:G14) -> 1 | P16: 8 | S16: 0.02777777778 | U16: 0.1666666667 | X16: 3 | Y16: 2 | Z16: 5 | AA16: 4 | AB16: 2 | AC16: 3 | AD16: 5 | AE16: 6 | AF16: 6 | AG16: 3 | AJ16: 8 | AK16: 1638 | AL16: 0.1638
A17: 13 | B17: 0.7664633064 | C17: 5 | P17: 9 | S17: 0.02777777778 | U17: 0.1666666667 | X17: 3 | Y17: 6 | Z17: 2 | AA17: 2 | AB17: 4 | AC17: 6 | AD17: 3 | AE17: 6 | AF17: 3 | AG17: 1 | AJ17: 9 | AK17: 1696 | AL17: 0.1696
A18: 14 | B18: 0.1728213771 | C18: 2 | P18: 10 | S18: 0.02777777778 | U18: 0.1666666667 | X18: 4 | Y18: 6 | Z18: 3 | AA18: 2 | AB18: 1 | AC18: 6 | AD18: 3 | AE18: 2 | AF18: 2 | AG18: 3 | AJ18: 10 | AK18: 1733 | AL18: 0.1733
A19: 15 | B19: 0.8637425347 | C19: 6 | E19: Expected count is | P19: 11 | S19: 0.02777777778 | U19: 0.1666666667 | X19: 6 | Y19: 1 | Z19: 5 | AA19: 4 | AB19: 1 | AC19: 6 | AD19: 1 | AE19: 1 | AF19: 5 | AG19: 5 | AJ19: 11 | AK19: 1664 | AL19: 0.1664
A20: 16 | B20: 0.349577312 | C20: 3 | E20: 10000 * 1/6 = | F20: =10000*1/6 -> 1666.666667 | P20: 12 | S20: 0.02777777778 | U20: 0.1666666667 | X20: 4 | Y20: 6 | Z20: 6 | AA20: 6 | AB20: 5 | AC20: 6 | AD20: 4 | AE20: 1 | AF20: 1 | AG20: 2 | AJ20: 12 | AK20: 1723 | AL20: 0.1723
A21: 17 | B21: 0.8790759097 | C21: 6 | P21: 13 | S21: 0.02777777778 | U21: 0.1666666667 | X21: =RANDBETWEEN(1,6) -> 2 | Y21: 3 | Z21: 6 | AA21: 2 | AB21: 1 | AC21: 3 | AD21: 1 | AE21: 6 | AF21: 1 | AG21: 6 | AJ21: 13 | AK21: 1633 | AL21: 0.1633
A22: 18 | B22: 0.4564225247 | C22: 3 | E22: distribution mean of X | P22: 14 | S22: 0.02777777778 | U22: 0.1666666667 | X22: 4 | Y22: 6 | Z22: 3 | AA22: 2 | AB22: 3 | AC22: 4 | AD22: 3 | AE22: 3 | AF22: 5 | AG22: 3 | AJ22: 14 | AK22: 1606 | AL22: 0.1606
A23: 19 | B23: 0.04838214395 | C23: 1 | E23: 1/6*(1+2+3+4+5+6)= | F23: 3.5 | P23: 15 | S23: 0.02777777778 | U23: 0.1666666667 | X23: 5 | Y23: 4 | Z23: 5 | AA23: 4 | AB23: 3 | AC23: 5 | AD23: 1 | AE23: 4 | AF23: 5 | AG23: 1 | AJ23: 15 | AK23: 1664 | AL23: 0.1664
A24: 20 | B24: 0.1398498839 | C24: 1 | P24: 16 | S24: 0.02777777778 | U24: 0.1666666667 | X24: 6 | Y24: 3 | Z24: 6 | AA24: 4 | AB24: 4 | AC24: 3 | AD24: 6 | AE24: 5 | AF24: 1 | AG24: 1 | AJ24: 16 | AK24: 1660 | AL24: 0.166
A25: 21 | B25: 0.006356108313 | C25: 1 | E25: Observed mean of X | P25: 17 | S25: 0.02777777778 | U25: 0.1666666667 | X25: 1 | Y25: 2 | Z25: 5 | AA25: 3 | AB25: 4 | AC25: 6 | AD25: 5 | AE25: 3 | AF25: 4 | AG25: 3 | AJ25: 17 | AK25: 1681 | AL25: 0.1681
A26: 22 | B26: 0.9360650145 | C26: 6 | F26: =E9*G9+E10*G10+E11*G11+E12*G12+E13*G13+E14*G14 -> 3.5069 | P26: 18 | S26: 0.02777777778 | U26: 0.1666666667 | X26: 6 | Y26: 5 | Z26: 5 | AA26: 6 | AB26: 5 | AC26: 6 | AD26: 6 | AE26: 5 | AF26: 5 | AG26: 1 | AJ26: 18 | AK26: 1630 | AL26: 0.163
A27: 23 | B27: 0.1608766432 | C27: 1 | P27: 19 | S27: 0.02777777778 | U27: 0.1666666667 | X27: 2 | Y27: 1 | Z27: 5 | AA27: 5 | AB27: 6 | AC27: 1 | AD27: 6 | AE27: 4 | AF27: 3 | AG27: 2 | AJ27: 19 | AK27: 1633 | AL27: 0.1633
A28: 24 | B28: 0.4079992484 | C28: 3 | P28: 20 | S28: 0.02777777778 | U28: 0.1666666667 | X28: 6 | Y28: 5 | Z28: 3 | AA28: 3 | AB28: 6 | AC28: 5 | AD28: 6 | AE28: 5 | AF28: 4 | AG28: 3 | AJ28: 20 | AK28: 1688 | AL28: 0.1688
A29: 25 | B29: 0.4313322322 | C29: 3 | X29: 4 | Y29: 3 | Z29: 4 | AA29: 4 | AB29: 5 | AC29: 5 | AD29: 2 | AE29: 5 | AF29: 3 | AG29: 5 | AJ29: 21 | AK29: 1701 | AL29: 0.1701
A30: 26 | B30: 0.913159062 | C30: 6 | Q30: average | R30: =AVERAGE(R9:R28) ->  | S30: true = | T30: =1/6 -> 0.1666666667 | X30: 3 | Y30: 3 | Z30: 1 | AA30: 1 | AB30: 3 | AC30: 4 | AD30: 2 | AE30: 2 | AF30: 4 | AG30: 2 | AJ30: 22 | AK30: 1653 | AL30: 0.1653
A31: 27 | B31: 0.4080914462 | C31: 3 | Q31: std. error | R31: =SQRT(SUM(S9:S28)/($P$28-1)) -> 0.170996392 | X31: 3 | Y31: 2 | Z31: 1 | AA31: 5 | AB31: 6 | AC31: 5 | AD31: 3 | AE31: 1 | AF31: 5 | AG31: 2 | AJ31: 23 | AK31: 1644 | AL31: 0.1644
A32: 28 | B32: 0.929914762 | C32: 6 | X32: 3 | Y32: 5 | Z32: 5 | AA32: 3 | AB32: 3 | AC32: 3 | AD32: 6 | AE32: 4 | AF32: 2 | AG32: 3 | AJ32: 24 | AK32: 1657 | AL32: 0.1657
A33: 29 | B33: 0.3737883484 | C33: 3 | X33: 3 | Y33: 2 | Z33: 2 | AA33: 5 | AB33: 1 | AC33: 1 | AD33: 4 | AE33: 5 | AF33: 3 | AG33: 4 | AJ33: 25 | AK33: 1657 | AL33: 0.1657
A34: 30 | B34: 0.0363292185 | C34: 1 | X34: 1 | Y34: 5 | Z34: 3 | AA34: 4 | AB34: 6 | AC34: 5 | AD34: 6 | AE34: 3 | AF34: 4 | AG34: 3 | AJ34: 26 | AK34: 1626 | AL34: 0.1626
A35: 31 | B35: 0.4628148489 | C35: 3 | X35: 3 | Y35: 1 | Z35: 5 | AA35: 1 | AB35: 6 | AC35: 5 | AD35: 4 | AE35: 4 | AF35: 5 | AG35: 3 | AJ35: 27 | AK35: 1703 | AL35: 0.1703
A36: 32 | B36: 0.1227499789 | C36: 1 | X36: 5 | Y36: 6 | Z36: 3 | AA36: 1 | AB36: 1 | AC36: 3 | AD36: 4 | AE36: 4 | AF36: 1 | AG36: 6 | AJ36: 28 | AK36: 1666 | AL36: 0.1666
A37: 33 | B37: 0.006121919552 | C37: 1 | X37: =RANDBETWEEN(1,6) -> 5 | Y37: 1 | Z37: 6 | AA37: 6 | AB37: 2 | AC37: 2 | AD37: 1 | AE37: 3 | AF37: 5 | AG37: 1 | AJ37: 29 | AK37: 1670 | AL37: 0.167
A38: 34 | B38: 0.6309935928 | C38: 4 | X38: 3 | Y38: 1 | Z38: 3 | AA38: 4 | AB38: 6 | AC38: 3 | AD38: 2 | AE38: 2 | AF38: 4 | AG38: 2 | AJ38: 30 | AK38: 1620 | AL38: 0.162
A39: 35 | B39: 0.9211214624 | C39: 6 | X39: 4 | Y39: 1 | Z39: 5 | AA39: 5 | AB39: 5 | AC39: 6 | AD39: 1 | AE39: 4 | AF39: 2 | AG39: 1 | AJ39: 31 | AK39: 1736 | AL39: 0.1736
A40: 36 | B40: 0.7493497667 | C40: 5 | X40: 3 | Y40: 3 | Z40: 2 | AA40: 2 | AB40: 6 | AC40: 4 | AD40: 6 | AE40: 5 | AF40: 2 | AG40: 2 | AJ40: 32 | AK40: 1592 | AL40: 0.1592
A41: 37 | B41: 0.3721836558 | C41: 3 | X41: 3 | Y41: 1 | Z41: 6 | AA41: 3 | AB41: 2 | AC41: 2 | AD41: 6 | AE41: 3 | AF41: 3 | AG41: 1 | AJ41: 33 | AK41: 1693 | AL41: 0.1693
A42: 38 | B42: 0.9983174294 | C42: 6 | X42: 3 | Y42: 6 | Z42: 5 | AA42: 4 | AB42: 4 | AC42: 4 | AD42: 6 | AE42: 4 | AF42: 4 | AG42: 4 | AJ42: 34 | AK42: 1702 | AL42: 0.1702
A43: 39 | B43: 0.9026946625 | C43: 6 | X43: 6 | Y43: 5 | Z43: 5 | AA43: 1 | AB43: 1 | AC43: 4 | AD43: 2 | AE43: 1 | AF43: 6 | AG43: 5 | AJ43: 35 | AK43: 1672 | AL43: 0.1672
A44: 40 | B44: 0.07997542557 | C44: 1 | X44: 6 | Y44: 5 | Z44: 5 | AA44: 6 | AB44: 5 | AC44: 4 | AD44: 3 | AE44: 1 | AF44: 4 | AG44: 4 | AJ44: 36 | AK44: 1630 | AL44: 0.163
A45: 41 | B45: 0.971969417 | C45: 6 | X45: 6 | Y45: 6 | Z45: 6 | AA45: 1 | AB45: 6 | AC45: 5 | AD45: 1 | AE45: 2 | AF45: 2 | AG45: 1 | AJ45: 37 | AK45: 1659 | AL45: 0.1659
A46: 42 | B46: 0.3607503055 | C46: 3 | X46: 1 | Y46: 2 | Z46: 4 | AA46: 1 | AB46: 5 | AC46: 4 | AD46: 2 | AE46: 5 | AF46: 6 | AG46: 3 | AJ46: 38 | AK46: 1676 | AL46: 0.1676
A47: 43 | B47: 0.358820599 | C47: 3 | X47: 4 | Y47: 4 | Z47: 2 | AA47: 5 | AB47: 3 | AC47: 2 | AD47: 1 | AE47: 5 | AF47: 6 | AG47: 4 | AJ47: 39 | AK47: 1695 | AL47: 0.1695
A48: 44 | B48: 0.2015040498 | C48: 2 | X48: 5 | Y48: 2 | Z48: 4 | AA48: 6 | AB48: 1 | AC48: 2 | AD48: 3 | AE48: 6 | AF48: 5 | AG48: 6 | AJ48: 40 | AK48: 1663 | AL48: 0.1663
A49: 45 | B49: 0.6446235433 | C49: 4 | X49: 2 | Y49: 4 | Z49: 1 | AA49: 6 | AB49: 2 | AC49: 1 | AD49: 1 | AE49: 4 | AF49: 2 | AG49: 3 | AJ49: 41 | AK49: 1673 | AL49: 0.1673
A50: 46 | B50: 0.1477489821 | C50: 1 | X50: 2 | Y50: 3 | Z50: 2 | AA50: 1 | AB50: 5 | AC50: 2 | AD50: 1 | AE50: 3 | AF50: 3 | AG50: 3 | AJ50: 42 | AK50: 1733 | AL50: 0.1733
A51: 47 | B51: 0.2830157378 | C51: 2 | X51: 3 | Y51: 3 | Z51: 1 | AA51: 4 | AB51: 6 | AC51: 6 | AD51: 2 | AE51: 2 | AF51: 1 | AG51: 5 | AJ51: 43 | AK51: 1682 | AL51: 0.1682
A52: 48 | B52: 0.2903242244 | C52: 2 | X52: 2 | Y52: 3 | Z52: 3 | AA52: 1 | AB52: 3 | AC52: 1 | AD52: 2 | AE52: 5 | AF52: 3 | AG52: 3 | AJ52: 44 | AK52: 1658 | AL52: 0.1658
A53: 49 | B53: 0.9735007908 | C53: 6 | X53: =RANDBETWEEN(1,6) -> 1 | Y53: 3 | Z53: 4 | AA53: 6 | AB53: 1 | AC53: 2 | AD53: 4 | AE53: 1 | AF53: 5 | AG53: 2 | AJ53: 45 | AK53: 1665 | AL53: 0.1665
A54: 50 | B54: 0.4206176034 | C54: 3 | X54: 1 | Y54: 1 | Z54: 6 | AA54: 6 | AB54: 2 | AC54: 1 | AD54: 1 | AE54: 5 | AF54: 2 | AG54: 4 | AJ54: 46 | AK54: 1677 | AL54: 0.1677
A55: 51 | B55: 0.8686854925 | C55: 6 | X55: 4 | Y55: 6 | Z55: 5 | AA55: 6 | AB55: 1 | AC55: 4 | AD55: 5 | AE55: 6 | AF55: 5 | AG55: 2 | AJ55: 47 | AK55: 1666 | AL55: 0.1666
A56: 52 | B56: 0.279137013 | C56: 2 | X56: 4 | Y56: 6 | Z56: 6 | AA56: 2 | AB56: 1 | AC56: 2 | AD56: 3 | AE56: 5 | AF56: 1 | AG56: 3 | AJ56: 48 | AK56: 1641 | AL56: 0.1641
A57: 53 | B57: 0.08963350497 | C57: 1 | X57: 5 | Y57: 4 | Z57: 4 | AA57: 2 | AB57: 6 | AC57: 6 | AD57: 6 | AE57: 1 | AF57: 4 | AG57: 2 | AJ57: 49 | AK57: 1698 | AL57: 0.1698
A58: 54 | B58: 0.8074962593 | C58: 5 | X58: 2 | Y58: 2 | Z58: 1 | AA58: 1 | AB58: 4 | AC58: 6 | AD58: 5 | AE58: 5 | AF58: 2 | AG58: 4 | AJ58: 50 | AK58: 1686 | AL58: 0.1686
A59: 55 | B59: 0.4938061322 | C59: 3 | X59: 4 | Y59: 3 | Z59: 3 | AA59: 2 | AB59: 4 | AC59: 2 | AD59: 4 | AE59: 1 | AF59: 6 | AG59: 2 | AJ59: 51 | AK59: 1634 | AL59: 0.1634
A60: 56 | B60: 0.02356937749 | C60: 1 | X60: 6 | Y60: 2 | Z60: 6 | AA60: 1 | AB60: 6 | AC60: 5 | AD60: 3 | AE60: 4 | AF60: 5 | AG60: 1 | AJ60: 52 | AK60: 1701 | AL60: 0.1701
A61: 57 | B61: 0.5138129623 | C61: 4 | X61: 6 | Y61: 6 | Z61: 5 | AA61: 3 | AB61: 3 | AC61: 1 | AD61: 2 | AE61: 1 | AF61: 2 | AG61: 4 | AJ61: 53 | AK61: 1680 | AL61: 0.168
A62: 58 | B62: 0.8009768116 | C62: 5 | X62: 3 | Y62: 3 | Z62: 2 | AA62: 1 | AB62: 6 | AC62: 1 | AD62: 2 | AE62: 6 | AF62: 2 | AG62: 6 | AJ62: 54 | AK62: 1595 | AL62: 0.1595
A63: 59 | B63: 0.7286727676 | C63: 5 | X63: 2 | Y63: 2 | Z63: 2 | AA63: 4 | AB63: 3 | AC63: 4 | AD63: 5 | AE63: 5 | AF63: 5 | AG63: 1 | AJ63: 55 | AK63: 1634 | AL63: 0.1634
A64: 60 | B64: 0.6600790045 | C64: 4 | X64: 5 | Y64: 4 | Z64: 3 | AA64: 1 | AB64: 4 | AC64: 2 | AD64: 3 | AE64: 2 | AF64: 1 | AG64: 3 | AJ64: 56 | AK64: 1673 | AL64: 0.1673
A65: 61 | B65: 0.08777198998 | C65: 1 | X65: 5 | Y65: 6 | Z65: 4 | AA65: 1 | AB65: 3 | AC65: 6 | AD65: 6 | AE65: 2 | AF65: 1 | AG65: 5 | AJ65: 57 | AK65: 1705 | AL65: 0.1705
A66: 62 | B66: 0.3042428351 | C66: 2 | X66: 1 | Y66: 6 | Z66: 3 | AA66: 4 | AB66: 5 | AC66: 3 | AD66: 4 | AE66: 1 | AF66: 5 | AG66: 5 | AJ66: 58 | AK66: 1677 | AL66: 0.1677
A67: 63 | B67: 0.7519271155 | C67: 5 | X67: 3 | Y67: 3 | Z67: 3 | AA67: 4 | AB67: 3 | AC67: 6 | AD67: 4 | AE67: 3 | AF67: 6 | AG67: 4 | AJ67: 59 | AK67: 1639 | AL67: 0.1639
A68: 64 | B68: 0.6948375581 | C68: 5 | X68: 5 | Y68: 6 | Z68: 1 | AA68: 3 | AB68: 2 | AC68: 2 | AD68: 6 | AE68: 5 | AF68: 2 | AG68: 1 | AJ68: 60 | AK68: 1697 | AL68: 0.1697
A69: 65 | B69: 0.8236790829 | C69: 5 | X69: =RANDBETWEEN(1,6) -> 6 | Y69: 6 | Z69: 2 | AA69: 1 | AB69: 3 | AC69: 1 | AD69: 1 | AE69: 6 | AF69: 1 | AG69: 5 | AJ69: 61 | AK69: 1590 | AL69: 0.159
A70: 66 | B70: =RAND() -> 0.03486840927 | C70: =INT(B70*6+1) -> 1 | X70: 6 | Y70: 3 | Z70: 5 | AA70: 5 | AB70: 2 | AC70: 2 | AD70: 1 | AE70: 2 | AF70: 4 | AG70: 3 | AJ70: 62 | AK70: 1647 | AL70: 0.1647
A71: 67 | B71: 0.6902802028 | C71: 5 | X71: 6 | Y71: 1 | Z71: 5 | AA71: 4 | AB71: 4 | AC71: 3 | AD71: 5 | AE71: 2 | AF71: 2 | AG71: 3 | AJ71: 63 | AK71: 1725 | AL71: 0.1725
A72: 68 | B72: 0.5933343551 | C72: 4 | X72: 4 | Y72: 5 | Z72: 6 | AA72: 2 | AB72: 3 | AC72: 1 | AD72: 1 | AE72: 2 | AF72: 2 | AG72: 1 | AJ72: 64 | AK72: 1667 | AL72: 0.1667
A73: 69 | B73: 0.6781819533 | C73: 5 | X73: 6 | Y73: 2 | Z73: 4 | AA73: 6 | AB73: 3 | AC73: 1 | AD73: 6 | AE73: 3 | AF73: 6 | AG73: 5 | AJ73: 65 | AK73: 1672 | AL73: 0.1672
A74: 70 | B74: 0.3916591355 | C74: 3 | X74: 3 | Y74: 1 | Z74: 3 | AA74: 3 | AB74: 3 | AC74: 1 | AD74: 4 | AE74: 6 | AF74: 3 | AG74: 3 | AJ74: 66 | AK74: 1682 | AL74: 0.1682
A75: 71 | B75: 0.7896359621 | C75: 5 | X75: 6 | Y75: 3 | Z75: 5 | AA75: 3 | AB75: 3 | AC75: 6 | AD75: 3 | AE75: 3 | AF75: 5 | AG75: 3 | AJ75: 67 | AK75: 1664 | AL75: 0.1664
A76: 72 | B76: 0.4921329271 | C76: 3 | X76: 3 | Y76: 2 | Z76: 6 | AA76: 2 | AB76: 6 | AC76: 4 | AD76: 1 | AE76: 1 | AF76: 3 | AG76: 4 | AJ76: 68 | AK76: 1626 | AL76: 0.1626
A77: 73 | B77: 0.5117317093 | C77: 4 | X77: 4 | Y77: 6 | Z77: 3 | AA77: 5 | AB77: 3 | AC77: 2 | AD77: 4 | AE77: 6 | AF77: 3 | AG77: 5 | AJ77: 69 | AK77: 1620 | AL77: 0.162
A78: 74 | B78: 0.1030446598 | C78: 1 | X78: 1 | Y78: 5 | Z78: 4 | AA78: 6 | AB78: 3 | AC78: 6 | AD78: 2 | AE78: 2 | AF78: 5 | AG78: 5 | AJ78: 70 | AK78: 1716 | AL78: 0.1716
A79: 75 | B79: 0.5622522728 | C79: 4 | X79: 3 | Y79: 4 | Z79: 2 | AA79: 6 | AB79: 4 | AC79: 3 | AD79: 5 | AE79: 5 | AF79: 2 | AG79: 5 | AJ79: 71 | AK79: 1694 | AL79: 0.1694
A80: 76 | B80: 0.8358460891 | C80: 6 | X80: 2 | Y80: 3 | Z80: 4 | AA80: 2 | AB80: 6 | AC80: 3 | AD80: 1 | AE80: 6 | AF80: 2 | AG80: 5 | AJ80: 72 | AK80: 1687 | AL80: 0.1687
A81: 77 | B81: 0.1539402455 | C81: 1 | X81: 6 | Y81: 2 | Z81: 1 | AA81: 3 | AB81: 3 | AC81: 4 | AD81: 1 | AE81: 5 | AF81: 2 | AG81: 6 | AJ81: 73 | AK81: 1595 | AL81: 0.1595
A82: 78 | B82: 0.08569997379 | C82: 1 | X82: 5 | Y82: 1 | Z82: 1 | AA82: 3 | AB82: 2 | AC82: 6 | AD82: 3 | AE82: 2 | AF82: 6 | AG82: 3 | AJ82: 74 | AK82: 1687 | AL82: 0.1687
A83: 79 | B83: 0.5326232135 | C83: 4 | X83: 3 | Y83: 3 | Z83: 1 | AA83: 2 | AB83: 6 | AC83: 2 | AD83: 4 | AE83: 3 | AF83: 5 | AG83: 6 | AJ83: 75 | AK83: 1590 | AL83: 0.159
A84: 80 | B84: 0.8669970918 | C84: 6 | X84: 5 | Y84: 5 | Z84: 3 | AA84: 5 | AB84: 6 | AC84: 4 | AD84: 6 | AE84: 6 | AF84: 3 | AG84: 4 | AJ84: 76 | AK84: 1658 | AL84: 0.1658
A85: 81 | B85: 0.2476995451 | C85: 2 | X85: =RANDBETWEEN(1,6) -> 3 | Y85: 2 | Z85: 4 | AA85: 4 | AB85: 4 | AC85: 6 | AD85: 2 | AE85: 5 | AF85: 1 | AG85: 1 | AJ85: 77 | AK85: 1635 | AL85: 0.1635
A86: 82 | B86: 0.1167893182 | C86: 1 | X86: 3 | Y86: 3 | Z86: 1 | AA86: 1 | AB86: 3 | AC86: 1 | AD86: 3 | AE86: 6 | AF86: 2 | AG86: 4 | AJ86: 78 | AK86: 1692 | AL86: 0.1692
A87: 83 | B87: 0.4943654264 | C87: 3 | X87: 2 | Y87: 6 | Z87: 5 | AA87: 2 | AB87: 2 | AC87: 1 | AD87: 5 | AE87: 5 | AF87: 4 | AG87: 3 | AJ87: 79 | AK87: 1616 | AL87: 0.1616
A88: 84 | B88: 0.4389903166 | C88: 3 | X88: 6 | Y88: 1 | Z88: 2 | AA88: 2 | AB88: 5 | AC88: 5 | AD88: 1 | AE88: 5 | AF88: 3 | AG88: 1 | AJ88: 80 | AK88: 1673 | AL88: 0.1673
A89: 85 | B89: 0.3306740545 | C89: 2 | X89: 3 | Y89: 4 | Z89: 1 | AA89: 4 | AB89: 4 | AC89: 6 | AD89: 5 | AE89: 5 | AF89: 1 | AG89: 5 | AJ89: 81 | AK89: 1707 | AL89: 0.1707
A90: 86 | B90: 0.3348972995 | C90: 3 | X90: 5 | Y90: 6 | Z90: 5 | AA90: 4 | AB90: 2 | AC90: 2 | AD90: 5 | AE90: 1 | AF90: 2 | AG90: 6 | AJ90: 82 | AK90: 1746 | AL90: 0.1746
A91: 87 | B91: 0.1705740598 | C91: 2 | X91: 4 | Y91: 3 | Z91: 5 | AA91: 2 | AB91: 5 | AC91: 1 | AD91: 1 | AE91: 3 | AF91: 1 | AG91: 5 | AJ91: 83 | AK91: 1705 | AL91: 0.1705
A92: 88 | B92: 0.6145758005 | C92: 4 | X92: 6 | Y92: 1 | Z92: 6 | AA92: 6 | AB92: 3 | AC92: 6 | AD92: 3 | AE92: 6 | AF92: 3 | AG92: 5 | AJ92: 84 | AK92: 1639 | AL92: 0.1639
A93: 89 | B93: 0.1621951433 | C93: 1 | X93: 6 | Y93: 4 | Z93: 5 | AA93: 1 | AB93: 4 | AC93: 4 | AD93: 3 | AE93: 5 | AF93: 2 | AG93: 1 | AJ93: 85 | AK93: 1602 | AL93: 0.1602
A94: 90 | B94: 0.5962142008 | C94: 4 | X94: 6 | Y94: 3 | Z94: 3 | AA94: 6 | AB94: 2 | AC94: 2 | AD94: 4 | AE94: 2 | AF94: 6 | AG94: 1 | AJ94: 86 | AK94: 1705 | AL94: 0.1705
A95: 91 | B95: 0.9651699661 | C95: 6 | X95: 6 | Y95: 5 | Z95: 2 | AA95: 2 | AB95: 1 | AC95: 1 | AD95: 4 | AE95: 3 | AF95: 4 | AG95: 2 | AJ95: 87 | AK95: 1659 | AL95: 0.1659
A96: 92 | B96: 0.6349811059 | C96: 4 | X96: 3 | Y96: 4 | Z96: 1 | AA96: 5 | AB96: 6 | AC96: 3 | AD96: 3 | AE96: 2 | AF96: 6 | AG96: 1 | AJ96: 88 | AK96: 1633 | AL96: 0.1633
A97: 93 | B97: 0.2425769296 | C97: 2 | X97: 5 | Y97: 2 | Z97: 6 | AA97: 4 | AB97: 1 | AC97: 3 | AD97: 6 | AE97: 6 | AF97: 1 | AG97: 5 | AJ97: 89 | AK97: 1705 | AL97: 0.1705
A98: 94 | B98: 0.6286230647 | C98: 4 | X98: 6 | Y98: 2 | Z98: 3 | AA98: 3 | AB98: 3 | AC98: 1 | AD98: 3 | AE98: 4 | AF98: 2 | AG98: 4 | AJ98: 90 | AK98: 1696 | AL98: 0.1696
A99: 95 | B99: 0.8706522883 | C99: 6 | X99: 2 | Y99: 1 | Z99: 2 | AA99: 2 | AB99: 6 | AC99: 1 | AD99: 6 | AE99: 6 | AF99: 3 | AG99: 3 | AJ99: 91 | AK99: 1650 | AL99: 0.165
A100: 96 | B100: 0.4608068332 | C100: 3 | X100: 6 | Y100: 5 | Z100: 4 | AA100: 2 | AB100: 1 | AC100: 4 | AD100: 4 | AE100: 6 | AF100: 5 | AG100: 4 | AJ100: 92 | AK100: 1586 | AL100: 0.1586
A101: 97 | B101: 0.5176098499 | C101: 4 | X101: =RANDBETWEEN(1,6) -> 6 | Y101: 5 | Z101: 5 | AA101: 5 | AB101: 6 | AC101: 1 | AD101: 5 | AE101: 4 | AF101: 3 | AG101: 4 | AJ101: 93 | AK101: 1632 | AL101: 0.1632
A102: 98 | B102: 0.9603268813 | C102: 6 | X102: 3 | Y102: 2 | Z102: 3 | AA102: 5 | AB102: 1 | AC102: 1 | AD102: 6 | AE102: 2 | AF102: 1 | AG102: 4 | AJ102: 94 | AK102: 1630 | AL102: 0.163
A103: 99 | B103: 0.09175330853 | C103: 1 | X103: 1 | Y103: 1 | Z103: 5 | AA103: 5 | AB103: 4 | AC103: 5 | AD103: 1 | AE103: 5 | AF103: 6 | AG103: 4 | AJ103: 95 | AK103: 1651 | AL103: 0.1651
A104: 100 | B104: 0.703498356 | C104: 5 | X104: 6 | Y104: 6 | Z104: 6 | AA104: 5 | AB104: 2 | AC104: 6 | AD104: 1 | AE104: 5 | AF104: 2 | AG104: 3 | AJ104: 96 | AK104: 1741 | AL104: 0.1741
A105: 101 | B105: 0.908648955 | C105: 6 | X105: 1 | Y105: 1 | Z105: 1 | AA105: 5 | AB105: 5 | AC105: 6 | AD105: 1 | AE105: 1 | AF105: 4 | AG105: 2 | AJ105: 97 | AK105: 1656 | AL105: 0.1656
A106: 102 | B106: 0.6294980118 | C106: 4 | X106: 6 | Y106: 1 | Z106: 5 | AA106: 2 | AB106: 1 | AC106: 5 | AD106: 1 | AE106: 6 | AF106: 1 | AG106: 3 | AJ106: 98 | AK106: 1633 | AL106: 0.1633
A107: 103 | B107: 0.6821146777 | C107: 5 | X107: 4 | Y107: 5 | Z107: 1 | AA107: 2 | AB107: 6 | AC107: 6 | AD107: 5 | AE107: 2 | AF107: 4 | AG107: 4 | AJ107: 99 | AK107: 1691 | AL107: 0.1691
A108: 104 | B108: 0.4961505742 | C108: 3 | X108: 5 | Y108: 5 | Z108: 6 | AA108: 3 | AB108: 1 | AC108: 4 | AD108: 4 | AE108: 3 | AF108: 5 | AG108: 1 | AJ108: 100 | AK108: 1708 | AL108: 0.1708
A109: 105 | B109: 0.7971170439 | C109: 5 | X109: 2 | Y109: 2 | Z109: 5 | AA109: 4 | AB109: 4 | AC109: 1 | AD109: 1 | AE109: 6 | AF109: 2 | AG109: 4 | AJ109: 101 | AK109: 1579 | AL109: 0.1579
A110: 106 | B110: 0.6388310594 | C110: 4 | X110: 5 | Y110: 4 | Z110: 4 | AA110: 3 | AB110: 3 | AC110: 2 | AD110: 5 | AE110: 4 | AF110: 6 | AG110: 2 | AJ110: 102 | AK110: 1610 | AL110: 0.161
A111: 107 | B111: 0.9371901186 | C111: 6 | X111: 4 | Y111: 3 | Z111: 2 | AA111: 6 | AB111: 3 | AC111: 3 | AD111: 2 | AE111: 1 | AF111: 5 | AG111: 5 | AJ111: 103 | AK111: 1696 | AL111: 0.1696
A112: 108 | B112: 0.09563291365 | C112: 1 | X112: 1 | Y112: 1 | Z112: 5 | AA112: 2 | AB112: 2 | AC112: 2 | AD112: 2 | AE112: 5 | AF112: 4 | AG112: 1 | AJ112: 104 | AK112: 1627 | AL112: 0.1627
A113: 109 | B113: 0.5910851634 | C113: 4 | X113: 6 | Y113: 1 | Z113: 2 | AA113: 6 | AB113: 3 | AC113: 5 | AD113: 5 | AE113: 1 | AF113: 1 | AG113: 5 | AJ113: 105 | AK113: 1687 | AL113: 0.1687
A114: 110 | B114: 0.2912120976 | C114: 2 | X114: 1 | Y114: 6 | Z114: 6 | AA114: 2 | AB114: 5 | AC114: 6 | AD114: 5 | AE114: 2 | AF114: 6 | AG114: 6 | AJ114: 106 | AK114: 1666 | AL114: 0.1666
A115: 111 | B115: 0.5883506131 | C115: 4 | X115: 3 | Y115: 2 | Z115: 4 | AA115: 3 | AB115: 2 | AC115: 3 | AD115: 5 | AE115: 6 | AF115: 2 | AG115: 2 | AJ115: 107 | AK115: 1691 | AL115: 0.1691
A116: 112 | B116: 0.6868605556 | C116: 5 | X116: 3 | Y116: 4 | Z116: 5 | AA116: 4 | AB116: 4 | AC116: 4 | AD116: 1 | AE116: 1 | AF116: 5 | AG116: 2 | AJ116: 108 | AK116: 1604 | AL116: 0.1604
A117: 113 | B117: 0.6541333016 | C117: 4 | X117: =RANDBETWEEN(1,6) -> 3 | Y117: 4 | Z117: 1 | AA117: 5 | AB117: 6 | AC117: 6 | AD117: 6 | AE117: 2 | AF117: 6 | AG117: 6 | AJ117: 109 | AK117: 1696 | AL117: 0.1696
A118: 114 | B118: 0.5516586402 | C118: 4 | X118: 6 | Y118: 4 | Z118: 3 | AA118: 4 | AB118: 5 | AC118: 5 | AD118: 2 | AE118: 5 | AF118: 1 | AG118: 3 | AJ118: 110 | AK118: 1672 | AL118: 0.1672
A119: 115 | B119: 0.736563457 | C119: 5 | X119: 3 | Y119: 5 | Z119: 4 | AA119: 5 | AB119: 5 | AC119: 6 | AD119: 2 | AE119: 5 | AF119: 5 | AG119: 4 | AJ119: 111 | AK119: 1665 | AL119: 0.1665
A120: 116 | B120: 0.8478640908 | C120: 6 | X120: 6 | Y120: 1 | Z120: 5 | AA120: 3 | AB120: 1 | AC120: 4 | AD120: 3 | AE120: 5 | AF120: 5 | AG120: 4 | AJ120: 112 | AK120: 1721 | AL120: 0.1721
A121: 117 | B121: 0.8068368931 | C121: 5 | X121: 5 | Y121: 4 | Z121: 1 | AA121: 2 | AB121: 3 | AC121: 5 | AD121: 2 | AE121: 1 | AF121: 2 | AG121: 1 | AJ121: 113 | AK121: 1743 | AL121: 0.1743
A122: 118 | B122: 0.02380696017 | C122: 1 | X122: 2 | Y122: 4 | Z122: 1 | AA122: 1 | AB122: 3 | AC122: 2 | AD122: 6 | AE122: 5 | AF122: 3 | AG122: 3 | AJ122: 114 | AK122: 1688 | AL122: 0.1688
A123: 119 | B123: 0.4454372844 | C123: 3 | X123: 2 | Y123: 5 | Z123: 5 | AA123: 2 | AB123: 3 | AC123: 1 | AD123: 6 | AE123: 2 | AF123: 4 | AG123: 5 | AJ123: 115 | AK123: 1681 | AL123: 0.1681
A124: 120 | B124: 0.2581429975 | C124: 2 | X124: 5 | Y124: 4 | Z124: 4 | AA124: 5 | AB124: 1 | AC124: 6 | AD124: 1 | AE124: 3 | AF124: 1 | AG124: 6 | AJ124: 116 | AK124: 1698 | AL124: 0.1698
A125: 121 | B125: 0.07137419551 | C125: 1 | X125: 4 | Y125: 4 | Z125: 6 | AA125: 1 | AB125: 3 | AC125: 1 | AD125: 2 | AE125: 2 | AF125: 1 | AG125: 4 | AJ125: 117 | AK125: 1712 | AL125: 0.1712
A126: 122 | B126: 0.3711884845 | C126: 3 | X126: 1 | Y126: 2 | Z126: 4 | AA126: 3 | AB126: 2 | AC126: 1 | AD126: 5 | AE126: 5 | AF126: 5 | AG126: 1 | AJ126: 118 | AK126: 1601 | AL126: 0.1601
A127: 123 | B127: 0.866689978 | C127: 6 | X127: 6 | Y127: 1 | Z127: 4 | AA127: 4 | AB127: 3 | AC127: 1 | AD127: 2 | AE127: 5 | AF127: 1 | AG127: 3 | AJ127: 119 | AK127: 1691 | AL127: 0.1691
A128: 124 | B128: 0.8934868568 | C128: 6 | X128: 2 | Y128: 3 | Z128: 1 | AA128: 6 | AB128: 1 | AC128: 2 | AD128: 6 | AE128: 6 | AF128: 3 | AG128: 6 | AJ128: 120 | AK128: 1693 | AL128: 0.1693
A129: 125 | B129: 0.6171423213 | C129: 4 | X129: 4 | Y129: 6 | Z129: 1 | AA129: 3 | AB129: 1 | AC129: 5 | AD129: 4 | AE129: 2 | AF129: 1 | AG129: 2 | AJ129: 121 | AK129: 1685 | AL129: 0.1685
A130: 126 | B130: 0.1728084904 | C130: 2 | X130: 4 | Y130: 4 | Z130: 1 | AA130: 5 | AB130: 4 | AC130: 2 | AD130: 3 | AE130: 2 | AF130: 2 | AG130: 4 | AJ130: 122 | AK130: 1691 | AL130: 0.1691
A131: 127 | B131: 0.1923763162 | C131: 2 | X131: 1 | Y131: 3 | Z131: 5 | AA131: 3 | AB131: 1 | AC131: 3 | AD131: 3 | AE131: 5 | AF131: 4 | AG131: 1 | AJ131: 123 | AK131: 1625 | AL131: 0.1625
A132: 128 | B132: 0.4615495654 | C132: 3 | X132: 4 | Y132: 6 | Z132: 6 | AA132: 4 | AB132: 1 | AC132: 2 | AD132: 3 | AE132: 3 | AF132: 2 | AG132: 2 | AJ132: 124 | AK132: 1634 | AL132: 0.1634
A133: 129 | B133: 0.3176829568 | C133: 2 | X133: =RANDBETWEEN(1,6) -> 3 | Y133: 1 | Z133: 5 | AA133: 5 | AB133: 6 | AC133: 4 | AD133: 3 | AE133: 3 | AF133: 2 | AG133: 1 | AJ133: 125 | AK133: 1714 | AL133: 0.1714
A134: 130 | B134: =RAND() -> 0.3846871276 | C134: =INT(B134*6+1) -> 3 | X134: 4 | Y134: 1 | Z134: 5 | AA134: 4 | AB134: 5 | AC134: 4 | AD134: 5 | AE134: 2 | AF134: 3 | AG134: 3 | AJ134: 126 | AK134: 1672 | AL134: 0.1672
A135: 131 | B135: 0.6725520618 | C135: 5 | X135: 6 | Y135: 4 | Z135: 1 | AA135: 3 | AB135: 5 | AC135: 5 | AD135: 5 | AE135: 6 | AF135: 2 | AG135: 5 | AJ135: 127 | AK135: 1607 | AL135: 0.1607
A136: 132 | B136: 0.8495925229 | C136: 6 | X136: 6 | Y136: 2 | Z136: 1 | AA136: 2 | AB136: 6 | AC136: 6 | AD136: 3 | AE136: 6 | AF136: 5 | AG136: 2 | AJ136: 128 | AK136: 1625 | AL136: 0.1625
A137: 133 | B137: 0.6645717695 | C137: 4 | X137: 6 | Y137: 5 | Z137: 5 | AA137: 4 | AB137: 6 | AC137: 6 | AD137: 5 | AE137: 6 | AF137: 6 | AG137: 5 | AJ137: 129 | AK137: 1691 | AL137: 0.1691
A138: 134 | B138: 0.5693091403 | C138: 4 | X138: 2 | Y138: 5 | Z138: 4 | AA138: 4 | AB138: 5 | AC138: 5 | AD138: 6 | AE138: 2 | AF138: 5 | AG138: 4 | AJ138: 130 | AK138: 1669 | AL138: 0.1669
A139: 135 | B139: 0.6686490491 | C139: 5 | X139: 4 | Y139: 6 | Z139: 1 | AA139: 1 | AB139: 2 | AC139: 5 | AD139: 5 | AE139: 5 | AF139: 6 | AG139: 1 | AJ139: 131 | AK139: 1640 | AL139: 0.164
A140: 136 | B140: 0.7439866633 | C140: 5 | X140: 1 | Y140: 1 | Z140: 5 | AA140: 1 | AB140: 2 | AC140: 3 | AD140: 3 | AE140: 1 | AF140: 4 | AG140: 2 | AJ140: 132 | AK140: 1747 | AL140: 0.1747
A141: 137 | B141: 0.3990681713 | C141: 3 | X141: 2 | Y141: 6 | Z141: 4 | AA141: 1 | AB141: 3 | AC141: 3 | AD141: 5 | AE141: 4 | AF141: 4 | AG141: 4 | AJ141: 133 | AK141: 1635 | AL141: 0.1635
A142: 138 | B142: 0.9009089025 | C142: 6 | X142: 2 | Y142: 6 | Z142: 6 | AA142: 6 | AB142: 2 | AC142: 6 | AD142: 1 | AE142: 3 | AF142: 3 | AG142: 1 | AJ142: 134 | AK142: 1660 | AL142: 0.166
A143: 139 | B143: 0.3880643079 | C143: 3 | X143: 6 | Y143: 3 | Z143: 5 | AA143: 1 | AB143: 5 | AC143: 3 | AD143: 5 | AE143: 2 | AF143: 3 | AG143: 4 | AJ143: 135 | AK143: 1643 | AL143: 0.1643
A144: 140 | B144: 0.5403127563 | C144: 4 | X144: 5 | Y144: 2 | Z144: 4 | AA144: 3 | AB144: 2 | AC144: 5 | AD144: 3 | AE144: 4 | AF144: 4 | AG144: 4 | AJ144: 136 | AK144: 1706 | AL144: 0.1706
A145: 141 | B145: 0.2590119692 | C145: 2 | X145: 4 | Y145: 2 | Z145: 2 | AA145: 5 | AB145: 3 | AC145: 4 | AD145: 1 | AE145: 4 | AF145: 6 | AG145: 2 | AJ145: 137 | AK145: 1653 | AL145: 0.1653
A146: 142 | B146: 0.5874611795 | C146: 4 | X146: 5 | Y146: 5 | Z146: 1 | AA146: 6 | AB146: 6 | AC146: 3 | AD146: 1 | AE146: 4 | AF146: 1 | AG146: 6 | AJ146: 138 | AK146: 1636 | AL146: 0.1636
A147: 143 | B147: 0.0168205496 | C147: 1 | X147: 6 | Y147: 2 | Z147: 6 | AA147: 3 | AB147: 5 | AC147: 3 | AD147: 1 | AE147: 1 | AF147: 6 | AG147: 2 | AJ147: 139 | AK147: 1645 | AL147: 0.1645
A148: 144 | B148: 0.1325851238 | C148: 1 | X148: 4 | Y148: 6 | Z148: 1 | AA148: 3 | AB148: 3 | AC148: 6 | AD148: 1 | AE148: 4 | AF148: 4 | AG148: 3 | AJ148: 140 | AK148: 1640 | AL148: 0.164
A149: 145 | B149: 0.7967733095 | C149: 5 | X149: =RANDBETWEEN(1,6) -> 6 | Y149: 1 | Z149: 1 | AA149: 5 | AB149: 5 | AC149: 1 | AD149: 6 | AE149: 5 | AF149: 5 | AG149: 1 | AJ149: 141 | AK149: 1654 | AL149: 0.1654
A150: 146 | B150: 0.467456119 | C150: 3 | X150: 4 | Y150: 6 | Z150: 3 | AA150: 3 | AB150: 4 | AC150: 6 | AD150: 3 | AE150: 3 | AF150: 4 | AG150: 5 | AJ150: 142 | AK150: 1654 | AL150: 0.1654
A151: 147 | B151: 0.7730879148 | C151: 5 | X151: 3 | Y151: 6 | Z151: 1 | AA151: 4 | AB151: 3 | AC151: 2 | AD151: 3 | AE151: 3 | AF151: 2 | AG151: 3 | AJ151: 143 | AK151: 1650 | AL151: 0.165
A152: 148 | B152: 0.1879594616 | C152: 2 | X152: 5 | Y152: 3 | Z152: 6 | AA152: 2 | AB152: 6 | AC152: 6 | AD152: 6 | AE152: 3 | AF152: 2 | AG152: 4 | AJ152: 144 | AK152: 1698 | AL152: 0.1698
A153: 149 | B153: 0.09793092826 | C153: 1 | X153: 6 | Y153: 2 | Z153: 6 | AA153: 4 | AB153: 3 | AC153: 2 | AD153: 4 | AE153: 4 | AF153: 3 | AG153: 4 | AJ153: 145 | AK153: 1752 | AL153: 0.1752
A154: 150 | B154: 0.1639233001 | C154: 1 | X154: 5 | Y154: 2 | Z154: 4 | AA154: 3 | AB154: 6 | AC154: 4 | AD154: 2 | AE154: 5 | AF154: 4 | AG154: 1 | AJ154: 146 | AK154: 1678 | AL154: 0.1678
A155: 151 | B155: 0.3461938376 | C155: 3 | X155: 2 | Y155: 6 | Z155: 3 | AA155: 2 | AB155: 5 | AC155: 4 | AD155: 2 | AE155: 6 | AF155: 5 | AG155: 6 | AJ155: 147 | AK155: 1595 | AL155: 0.1595
A156: 152 | B156: 0.4066340385 | C156: 3 | X156: 4 | Y156: 2 | Z156: 2 | AA156: 6 | AB156: 5 | AC156: 4 | AD156: 3 | AE156: 3 | AF156: 3 | AG156: 3 | AJ156: 148 | AK156: 1633 | AL156: 0.1633
A157: 153 | B157: 0.308656637 | C157: 2 | X157: 3 | Y157: 4 | Z157: 4 | AA157: 3 | AB157: 6 | AC157: 1 | AD157: 4 | AE157: 1 | AF157: 6 | AG157: 2 | AJ157: 149 | AK157: 1652 | AL157: 0.1652
A158: 154 | B158: 0.1857133081 | C158: 2 | X158: 6 | Y158: 5 | Z158: 3 | AA158: 5 | AB158: 6 | AC158: 6 | AD158: 6 | AE158: 3 | AF158: 5 | AG158: 1 | AJ158: 150 | AK158: 1641 | AL158: 0.1641
A159: 155 | B159: 0.4317522377 | C159: 3 | X159: 4 | Y159: 6 | Z159: 3 | AA159: 4 | AB159: 6 | AC159: 1 | AD159: 2 | AE159: 2 | AF159: 2 | AG159: 4 | AJ159: 151 | AK159: 1696 | AL159: 0.1696
A160: 156 | B160: 0.5205143327 | C160: 4 | X160: 4 | Y160: 1 | Z160: 3 | AA160: 5 | AB160: 3 | AC160: 2 | AD160: 5 | AE160: 3 | AF160: 3 | AG160: 4 | AJ160: 152 | AK160: 1606 | AL160: 0.1606
A161: 157 | B161: 0.2393554503 | C161: 2 | X161: 5 | Y161: 3 | Z161: 5 | AA161: 2 | AB161: 5 | AC161: 1 | AD161: 6 | AE161: 3 | AF161: 3 | AG161: 5 | AJ161: 153 | AK161: 1637 | AL161: 0.1637
A162: 158 | B162: 0.004001540523 | C162: 1 | X162: 4 | Y162: 1 | Z162: 1 | AA162: 2 | AB162: 4 | AC162: 5 | AD162: 2 | AE162: 5 | AF162: 4 | AG162: 6 | AJ162: 154 | AK162: 1723 | AL162: 0.1723
A163: 159 | B163: 0.1951161613 | C163: 2 | X163: 4 | Y163: 6 | Z163: 4 | AA163: 4 | AB163: 6 | AC163: 1 | AD163: 4 | AE163: 5 | AF163: 6 | AG163: 3 | AJ163: 155 | AK163: 1630 | AL163: 0.163
A164: 160 | B164: 0.9935257029 | C164: 6 | X164: 1 | Y164: 5 | Z164: 3 | AA164: 3 | AB164: 3 | AC164: 3 | AD164: 6 | AE164: 4 | AF164: 5 | AG164: 5 | AJ164: 156 | AK164: 1688 | AL164: 0.1688
A165: 161 | B165: 0.6908555437 | C165: 5 | X165: =RANDBETWEEN(1,6) -> 4 | Y165: 3 | Z165: 5 | AA165: 1 | AB165: 1 | AC165: 4 | AD165: 2 | AE165: 5 | AF165: 2 | AG165: 2 | AJ165: 157 | AK165: 1690 | AL165: 0.169
A166: 162 | B166: 0.9784380909 | C166: 6 | X166: 6 | Y166: 6 | Z166: 4 | AA166: 3 | AB166: 4 | AC166: 2 | AD166: 1 | AE166: 3 | AF166: 2 | AG166: 3 | AJ166: 158 | AK166: 1658 | AL166: 0.1658
A167: 163 | B167: 0.9133401798 | C167: 6 | X167: 1 | Y167: 1 | Z167: 3 | AA167: 4 | AB167: 1 | AC167: 5 | AD167: 3 | AE167: 1 | AF167: 6 | AG167: 5 | AJ167: 159 | AK167: 1656 | AL167: 0.1656
A168: 164 | B168: 0.1663870507 | C168: 1 | X168: 2 | Y168: 6 | Z168: 2 | AA168: 2 | AB168: 5 | AC168: 3 | AD168: 3 | AE168: 3 | AF168: 4 | AG168: 3 | AJ168: 160 | AK168: 1654 | AL168: 0.1654
A169: 165 | B169: 0.7282814632 | C169: 5 | X169: 6 | Y169: 1 | Z169: 6 | AA169: 6 | AB169: 2 | AC169: 6 | AD169: 4 | AE169: 1 | AF169: 4 | AG169: 1 | AJ169: 161 | AK169: 1674 | AL169: 0.1674
A170: 166 | B170: 0.7463491512 | C170: 5 | X170: 2 | Y170: 6 | Z170: 4 | AA170: 4 | AB170: 2 | AC170: 5 | AD170: 6 | AE170: 2 | AF170: 4 | AG170: 2 | AJ170: 162 | AK170: 1649 | AL170: 0.1649
A171: 167 | B171: 0.759170601 | C171: 5 | X171: 4 | Y171: 3 | Z171: 6 | AA171: 2 | AB171: 4 | AC171: 4 | AD171: 5 | AE171: 5 | AF171: 4 | AG171: 1 | AJ171: 163 | AK171: 1648 | AL171: 0.1648
A172: 168 | B172: 0.8527371962 | C172: 6 | X172: 4 | Y172: 6 | Z172: 1 | AA172: 2 | AB172: 6 | AC172: 5 | AD172: 6 | AE172: 3 | AF172: 4 | AG172: 2 | AJ172: 164 | AK172: 1641 | AL172: 0.1641
A173: 169 | B173: 0.6735807348 | C173: 5 | X173: 5 | Y173: 1 | Z173: 6 | AA173: 3 | AB173: 6 | AC173: 4 | AD173: 5 | AE173: 6 | AF173: 1 | AG173: 6 | AJ173: 165 | AK173: 1627 | AL173: 0.1627
A174: 170 | B174: 0.9139053264 | C174: 6 | X174: 5 | Y174: 6 | Z174: 4 | AA174: 4 | AB174: 1 | AC174: 4 | AD174: 4 | AE174: 1 | AF174: 3 | AG174: 6 | AJ174: 166 | AK174: 1643 | AL174: 0.1643
A175: 171 | B175: 0.5693980119 | C175: 4 | X175: 4 | Y175: 2 | Z175: 5 | AA175: 3 | AB175: 4 | AC175: 6 | AD175: 6 | AE175: 6 | AF175: 2 | AG175: 2 | AJ175: 167 | AK175: 1654 | AL175: 0.1654
A176: 172 | B176: 0.7526370563 | C176: 5 | X176: 3 | Y176: 1 | Z176: 4 | AA176: 4 | AB176: 4 | AC176: 6 | AD176: 4 | AE176: 2 | AF176: 5 | AG176: 3 | AJ176: 168 | AK176: 1735 | AL176: 0.1735
A177: 173 | B177: 0.2161227961 | C177: 2 | X177: 3 | Y177: 4 | Z177: 6 | AA177: 6 | AB177: 2 | AC177: 6 | AD177: 3 | AE177: 5 | AF177: 6 | AG177: 5 | AJ177: 169 | AK177: 1647 | AL177: 0.1647
A178: 174 | B178: 0.2854681125 | C178: 2 | X178: 1 | Y178: 2 | Z178: 5 | AA178: 4 | AB178: 5 | AC178: 5 | AD178: 1 | AE178: 6 | AF178: 4 | AG178: 1 | AJ178: 170 | AK178: 1692 | AL178: 0.1692
A179: 175 | B179: 0.04138238017 | C179: 1 | X179: 6 | Y179: 4 | Z179: 1 | AA179: 1 | AB179: 6 | AC179: 6 | AD179: 1 | AE179: 6 | AF179: 1 | AG179: 5 | AJ179: 171 | AK179: 1649 | AL179: 0.1649
A180: 176 | B180: 0.3835596167 | C180: 3 | X180: 3 | Y180: 2 | Z180: 6 | AA180: 5 | AB180: 3 | AC180: 5 | AD180: 3 | AE180: 5 | AF180: 5 | AG180: 5 | AJ180: 172 | AK180: 1637 | AL180: 0.1637
A181: 177 | B181: 0.9485392985 | C181: 6 | X181: =RANDBETWEEN(1,6) -> 3 | Y181: 2 | Z181: 4 | AA181: 1 | AB181: 4 | AC181: 6 | AD181: 2 | AE181: 4 | AF181: 4 | AG181: 6 | AJ181: 173 | AK181: 1689 | AL181: 0.1689
A182: 178 | B182: 0.5918824404 | C182: 4 | X182: 5 | Y182: 5 | Z182: 4 | AA182: 4 | AB182: 1 | AC182: 3 | AD182: 4 | AE182: 1 | AF182: 3 | AG182: 1 | AJ182: 174 | AK182: 1679 | AL182: 0.1679
A183: 179 | B183: 0.3466311769 | C183: 3 | X183: 3 | Y183: 4 | Z183: 4 | AA183: 3 | AB183: 6 | AC183: 3 | AD183: 3 | AE183: 2 | AF183: 2 | AG183: 6 | AJ183: 175 | AK183: 1707 | AL183: 0.1707
A184: 180 | B184: 0.7856804488 | C184: 5 | X184: 3 | Y184: 1 | Z184: 5 | AA184: 5 | AB184: 3 | AC184: 1 | AD184: 6 | AE184: 1 | AF184: 4 | AG184: 2 | AJ184: 176 | AK184: 1642 | AL184: 0.1642
A185: 181 | B185: 0.5582042 | C185: 4 | X185: 2 | Y185: 5 | Z185: 1 | AA185: 3 | AB185: 4 | AC185: 3 | AD185: 3 | AE185: 3 | AF185: 4 | AG185: 6 | AJ185: 177 | AK185: 1688 | AL185: 0.1688
A186: 182 | B186: 0.3212162537 | C186: 2 | X186: 6 | Y186: 3 | Z186: 5 | AA186: 6 | AB186: 1 | AC186: 5 | AD186: 6 | AE186: 2 | AF186: 1 | AG186: 4 | AJ186: 178 | AK186: 1654 | AL186: 0.1654
A187: 183 | B187: 0.649645514 | C187: 4 | X187: 2 | Y187: 3 | Z187: 3 | AA187: 6 | AB187: 6 | AC187: 5 | AD187: 6 | AE187: 4 | AF187: 2 | AG187: 4 | AJ187: 179 | AK187: 1677 | AL187: 0.1677
A188: 184 | B188: 0.904050347 | C188: 6 | X188: 5 | Y188: 1 | Z188: 6 | AA188: 6 | AB188: 3 | AC188: 6 | AD188: 1 | AE188: 2 | AF188: 6 | AG188: 5 | AJ188: 180 | AK188: 1664 | AL188: 0.1664
A189: 185 | B189: 0.5817190831 | C189: 4 | X189: 6 | Y189: 3 | Z189: 2 | AA189: 4 | AB189: 1 | AC189: 5 | AD189: 2 | AE189: 1 | AF189: 3 | AG189: 1 | AJ189: 181 | AK189: 1683 | AL189: 0.1683
A190: 186 | B190: 0.7226588321 | C190: 5 | X190: 1 | Y190: 4 | Z190: 1 | AA190: 2 | AB190: 5 | AC190: 2 | AD190: 5 | AE190: 6 | AF190: 3 | AG190: 5 | AJ190: 182 | AK190: 1622 | AL190: 0.1622
A191: 187 | B191: 0.8758607024 | C191: 6 | X191: 6 | Y191: 4 | Z191: 1 | AA191: 4 | AB191: 3 | AC191: 3 | AD191: 2 | AE191: 2 | AF191: 1 | AG191: 6 | AJ191: 183 | AK191: 1664 | AL191: 0.1664
A192: 188 | B192: 0.6604403885 | C192: 4 | X192: 3 | Y192: 1 | Z192: 4 | AA192: 4 | AB192: 2 | AC192: 5 | AD192: 3 | AE192: 5 | AF192: 4 | AG192: 2 | AJ192: 184 | AK192: 1692 | AL192: 0.1692
A193: 189 | B193: 0.8063145171 | C193: 5 | X193: 3 | Y193: 5 | Z193: 1 | AA193: 3 | AB193: 6 | AC193: 5 | AD193: 6 | AE193: 3 | AF193: 2 | AG193: 4 | AJ193: 185 | AK193: 1730 | AL193: 0.173
A194: 190 | B194: 0.4618968091 | C194: 3 | X194: 4 | Y194: 1 | Z194: 1 | AA194: 3 | AB194: 3 | AC194: 2 | AD194: 6 | AE194: 4 | AF194: 1 | AG194: 1 | AJ194: 186 | AK194: 1682 | AL194: 0.1682
A195: 191 | B195: 0.2986441073 | C195: 2 | X195: 6 | Y195: 2 | Z195: 3 | AA195: 6 | AB195: 4 | AC195: 2 | AD195: 5 | AE195: 2 | AF195: 6 | AG195: 6 | AJ195: 187 | AK195: 1699 | AL195: 0.1699
A196: 192 | B196: 0.1624140507 | C196: 1 | X196: 2 | Y196: 5 | Z196: 1 | AA196: 3 | AB196: 6 | AC196: 4 | AD196: 6 | AE196: 4 | AF196: 5 | AG196: 1 | AJ196: 188 | AK196: 1636 | AL196: 0.1636
A197: 193 | B197: 0.9900937524 | C197: 6 | X197: =RANDBETWEEN(1,6) -> 2 | Y197: 4 | Z197: 4 | AA197: 2 | AB197: 3 | AC197: 6 | AD197: 1 | AE197: 3 | AF197: 3 | AG197: 4 | AJ197: 189 | AK197: 1752 | AL197: 0.1752
A198: 194 | B198: =RAND() -> 0.0113803101 | C198: =INT(B198*6+1) -> 1 | X198: 5 | Y198: 4 | Z198: 5 | AA198: 5 | AB198: 2 | AC198: 5 | AD198: 1 | AE198: 4 | AF198: 4 | AG198: 2 | AJ198: 190 | AK198: 1671 | AL198: 0.1671
A199: 195 | B199: 0.510228071 | C199: 4 | X199: 1 | Y199: 6 | Z199: 6 | AA199: 4 | AB199: 4 | AC199: 4 | AD199: 5 | AE199: 4 | AF199: 3 | AG199: 1 | AJ199: 191 | AK199: 1674 | AL199: 0.1674
A200: 196 | B200: 0.048466443 | C200: 1 | X200: 3 | Y200: 5 | Z200: 5 | AA200: 3 | AB200: 2 | AC200: 3 | AD200: 3 | AE200: 1 | AF200: 1 | AG200: 1 | AJ200: 192 | AK200: 1652 | AL200: 0.1652
A201: 197 | B201: 0.1550138963 | C201: 1 | X201: 6 | Y201: 1 | Z201: 5 | AA201: 2 | AB201: 5 | AC201: 1 | AD201: 4 | AE201: 5 | AF201: 1 | AG201: 1 | AJ201: 193 | AK201: 1696 | AL201: 0.1696
... 803 more rows

Sheet summary
C2: from the 20 saved experiments
D4: standard
C5: average | D5: error
B6: 12 | C6: ='12'!R30 ->  | D6: ='12'!R31 -> 0.170996392
B7: 100 | C7: ='100'!R30 ->  | D7: ='100'!R31 -> 0.170996392
B8: 1000 | C8: ='1000'!R30 ->  | D8: ='1000'!R31 -> 0.170996392
B9: 10000 | C9: ='10000'!R30 ->  | D9: ='10000'!R31 -> 0.170996392
